{"text_format":"1","workbook":"xlsx","n_sheets":8,"sheets":["M7V-spec","M7VC-spec","M7X-spec","M7V","M7VC","M7X","Com","Notes"],"not_rendered":{"charts":0,"images":2,"macros":1,"external_links":0,"defined_names":87,"comments":1,"pivot_tables":0},"unopened":[],"bounds":{"document_bytes":16777216,"sheet_cells":100000,"rows_first":2000,"rows_last":500,"rows_between":2000,"halvings":0,"cell_chars":16384,"cell_head_chars":4096},"cells_cut":0,"cells_raw":0,"read":"whole","date_system":"1900"}

{"sheet":"M7V-spec","index":0,"n_rows":122,"n_cols":41,"rows_kept":122,"cut":false,"hidden":true,"merged":[[108,3,108,6],[108,14,108,15],[108,16,108,17],[108,18,108,19],[108,20,108,21],[119,20,119,21],[117,20,117,21],[118,14,118,15],[118,16,118,17],[118,18,118,19],[118,20,118,21],[111,20,111,21],[112,14,112,15],[112,16,112,17],[112,18,112,19],[112,20,112,21],[115,20,115,21],[116,20,116,21],[113,20,113,21],[114,20,114,21],[109,20,109,21],[110,14,110,15],[110,16,110,17],[110,18,110,19],[117,1,119,1],[117,3,119,6],[117,14,117,15],[117,16,117,17],[117,18,117,19],[119,14,119,15],[119,16,119,17],[119,18,119,19],[113,1,116,1],[113,3,116,6],[113,14,113,15],[113,16,113,17],[113,18,113,19],[115,14,115,15],[115,16,115,17],[115,18,115,19],[116,14,116,15],[116,16,116,17],[116,18,116,19],[114,14,114,15],[114,16,114,17],[114,18,114,19],[110,20,110,21],[109,1,112,1],[109,3,112,6],[109,14,109,15],[109,16,109,17],[109,18,109,19],[111,14,111,15],[111,16,111,17],[111,18,111,19],[106,18,106,19],[106,20,106,21],[107,14,107,15],[107,16,107,17],[107,18,107,19],[107,20,107,21],[105,1,105,13],[106,1,107,1],[106,3,107,6],[106,14,106,15],[106,16,106,17],[98,1,98,2],[103,14,103,21],[104,14,104,15],[104,16,104,17],[104,18,104,19],[104,20,104,21],[70,1,73,1],[70,3,73,7],[74,1,76,1],[74,3,76,7],[81,1,82,1],[81,3,82,7],[52,1,55,1],[63,1,64,1],[63,3,64,7],[66,1,69,1],[66,3,69,7],[29,10,29,11],[30,10,30,11],[31,10,31,11],[33,10,33,13],[46,1,49,1],[65,3,65,7],[22,6,22,7],[22,10,22,11],[27,1,27,2],[27,10,27,11],[28,10,28,11],[23,6,23,7],[23,10,23,11],[24,6,24,7],[24,10,24,11],[19,6,19,7],[19,10,19,11],[20,6,20,7],[20,10,20,11],[21,6,21,7],[21,10,21,11],[5,20,5,21],[6,20,6,21],[15,1,15,2],[18,6,18,7],[18,10,18,11]]}
[]
["M7V Ordering Code"]
[]
[]
[null,"Please fill in the Inquiry Form on page 39 in order to specify the requirement."]
[null,null,null,1,null,2,3,4,5,6,null,7,8,9,10,11,12,13,14,null,15]
[null,null,null,"M7V",null,112,"A","A",1,1,"-","A","A",1,"T1","X","X","X","N","-",1]
[null,null,null,null,null,null,null,null,null,null,null,null,null,null,null,null,null,null,null,null,null,null,null,null,null,null,null,null,null,null,null,null,null,null,null,null,null,null,null,{"$f":"IF(M7V!AG1=\"Language : English\",\"General(Other)\",\"一般(その他)\")","v":"General(Other)"}," "]
[1,"M7V Series ",null,null,null,null,null,null,null,null,null,null,null,null,null,null,null,null,null,null,null,null,null,null,null,null,null,null,null,null,null,null,null,null,null,null,null,null,null,{"$f":"IF(M7V!AG1=\"Language : English\",\"Travel(Closed)\",\"走行(クローズド)\")","v":"Travel(Closed)"},{"$f":"IF(M7V!AG1=\"Language : English\",\"For travel (closed) applications, the motor may require flushing valve to prevent high temperature inside the system.\",\"走行(クローズド)用途では、システム内部の高温を防止するために、モータにフラッシングバルブが必要になる場合があります。\")","v":"For travel (closed) applications, the motor may require flushing valve to prevent high temperature inside the system."}]
[null,"M7V Series, Variable Displacement, Axial Piston Motor, Applicable in Both Open and Closed Loops",null,null,null,null,null,null,null,null,null,null,null,null,null,null,null,null,null,null,null,null,null,null,null,null,null,null,null,null,null,null,null,null,null,null,null,null,null,{"$f":"IF(M7V!AG1=\"Language : English\",\"Travel(Open)\",\"走行(オープン)\")","v":"Travel(Open)"},{"$f":"IF(M7V!AG1=\"Language : English\",\"For travel (open) applications, the motor may require counterbalance valves (both directions) to prevent cavitation inside the motor during braking.\",\"走行(クローズド)用途では、ブレーキ時のモータ内部のキャビテーションを防止するために、モータにカウンターバランス弁(両方向)が必要になる場合があります。\")","v":"For travel (open) applications, the motor may require counterbalance valves (both directions) to prevent cavitation inside the motor during braking."}]
[null,null,null,null,null,null,null,null,null,null,null,null,null,null,null,null,null,null,null,null,null,null,null,null,null,null,null,null,null,null,null,null,null,null,null,null,null,null,null,{"$f":"IF(M7V!AG1=\"Language : English\",\"Hoist\",\"巻上\")","v":"Hoist"},{"$f":"IF(M7V!AG1=\"Language : English\",\"For hoist applications, the motor may require counterbalance valves (one directions) to prevent cavitation inside the motor during braking.\",\"巻上用途では、ブレーキ時に発生するモータ内部のキャビテーションを防止するために、カウンターバランス弁(片方向)が必要になる場合があります。\")","v":"For hoist applications, the motor may require counterbalance valves (one directions) to prevent cavitation inside the motor during braking."}]
[2,"Size",null,null,null,null,null,null,null,null,null,null,null,null,null,null,null,null,null,85,112,160,212,null,null,null,null,null,null,null,null,null,null,null,null,null,null,null,null,{"$f":"IF(M7V!AG1=\"Language : English\",\"Swing\",\"旋回\")","v":"Swing"},{"$f":"IF(M7V!AG1=\"Language : English\",\"For swing applications, the motor may require counterbalance valves (for swing) to prevent cavitation inside the motor during braking.\",\"旋回用途では、ブレーキ時に発生するモータ内部のキャビテーションを防止するために、カウンターバランス弁(旋回用)が必要になる場合があります。\")","v":"For swing applications, the motor may require counterbalance valves (for swing) to prevent cavitation inside the motor during braking."}]
[null," Standard Size　",null,null,null,null,null,null,null,null,null,null,null,null,null,null,null,null,null,"●","●","●","●"]
[]
[3,"Series Specifications",null,null,null,null,null,null,null,null,null,null,null,null,null,null,null,null,null,85,112,160,212]
[null,"A",null," Standard",null,null,null,null,null,null,null,null,null,null,null,null,null,null,null,"●","●","●","●"]
[]
[4,"Mounting Flange and Port Position"]
[null,null,null," Mounting",null,null,null,null,null,null,null,null," Port position",null,null,null,null,null,null,85,112,160,212]
[null,"A",null," SAE J744, 2-bolt Mount",null,null,null,null,null,null,null,null," Rear",null,null,null,null,null,null,"●","●","●","○",null,null,null,"A",{"$f":"HLOOKUP(M7V!$AD$40,'M7V-spec'!$T$19:$W$25,2,0)","v":"●"},{"$f":"VLOOKUP(M7V!AD45,AA20:AB25,2,0)","v":"●"},null,{"$f":"M7V!AD45&M7V!AD54&M7V!AD57","v":"A11"},{"$f":"VLOOKUP(AE20,Com!E1:F216,2,0)","v":"○"}]
[null,"B",null," SAE J744, 4-bolt Mount",null,null,null,null,null,null,null,null," Side",null,null,null,null,null,null,"●","●","●","○",null,null,null,"B",{"$f":"HLOOKUP(M7V!$AD$40,'M7V-spec'!$T$19:$W$25,3,0)","v":"●"}]
[null,"C",null," ISO 3019-2, 4-bolt Mount　",null,null,null,null,null,null,null,null," Rear",null,null,null,null,null,null,"●","●","●","●",null,null,null,"C",{"$f":"HLOOKUP(M7V!$AD$40,'M7V-spec'!$T$19:$W$25,4,0)","v":"●"}]
[null,"D",null," ISO 3019-2, 4-bolt Mount　",null,null,null,null,null,null,null,null," Side",null,null,null,null,null,null,"●","●","●","●",null,null,null,"D",{"$f":"HLOOKUP(M7V!$AD$40,'M7V-spec'!$T$19:$W$25,5,0)","v":"●"}]
[null,"E",null," SAE J744, 4-bolt Mount",null,null,null,null,null,null,null,null," Rear",null,null,null,null,null,null,"●","-","-","-",null,null,null,"E",{"$f":"HLOOKUP(M7V!$AD$40,'M7V-spec'!$T$19:$W$25,6,0)","v":"●"}]
[null,"F",null," SAE J744, 4-bolt Mount",null,null,null,null,null,null,null,null," Side",null,null,null,null,null,null,"●","-","-","-",null,null,null,"F",{"$f":"HLOOKUP(M7V!$AD$40,'M7V-spec'!$T$19:$W$25,7,0)","v":"●"}]
[]
[5,"Port and Flange Fixing Thread "]
[null,null,null," Threaded Port Type",null,null,null,null,null,null,null,null," Flange Fixing Thread Type",null,null,null,null,null,null,85,112,160,212]
[null,1,null," ANSI ISO11926",null,null,null,null,null,null,null,null," ANSI ASMEB1.1",null,null,null,null,null,null,"●","●","●","○",null,null,null,1,{"$f":"HLOOKUP(M7V!$AD$40,'M7V-spec'!T28:W32,2,0)","v":"●"},{"$f":"VLOOKUP(M7V!AD54,AA29:AB30,2,0)","v":"●"}]
[null,2,null," ANSI ISO11926",null,null,null,null,null,null,null,null," Metric ISO724",null,null,null,null,null,null,"○","○","○","○",null,null,null,4,{"$f":"HLOOKUP(M7V!$AD$40,'M7V-spec'!T28:W32,5,0)","v":"●"}]
[null,3,null," Metric ISO6149",null,null,null,null,null,null,null,null," Metric ISO724",null,null,null,null,null,null,"○","○","○","○"]
[null,4,null," Parallel Piping ISO228",null,null,null,null,null,null,null,null," Metric ISO724",null,null,null,null,null,null,"●","●","●","●"]
[]
[6,"Shaft End "]
[null,null,null," Standard",null,null,null,null,null,null,null,null," Specifications",null,null,null,null,null,null,85,112,160,212]
[null,1,null," ANSI B92.1",null,null,null,null,null,null,null,null," 1 1/2 in 17T 12/24DP",null,null,null,null,null,null,"●","-","-","-",null,null,null,1,{"$f":"HLOOKUP(M7V!$AD$40,'M7V-spec'!$T$35:$W$44,2,0)","v":"●"},{"$f":"VLOOKUP(M7V!AD57,AA36:AB44,2,0)","v":"●"}]
[null,2,null," ANSI B92.1",null,null,null,null,null,null,null,null," 1 3/4 in 13T 8/16DP",null,null,null,null,null,null,"-","●","●","-",null,null,null,2,{"$f":"HLOOKUP(M7V!$AD$40,'M7V-spec'!$T$35:$W$44,3,0)","v":"-"}]
[null,3,null," ANSI B92.1",null,null,null,null,null,null,null,null," 2 in 15T 8/16DP",null,null,null,null,null,null,"-","-","●","○",null,null,null,3,{"$f":"HLOOKUP(M7V!$AD$40,'M7V-spec'!$T$35:$W$44,4,0)","v":"-"}]
[null,4,null," ANSI B92.1",null,null,null,null,null,null,null,null," 1 3/8 in 21T 16/32DP",null,null,null,null,null,null,"●","-","-","-",null,null,null,4,{"$f":"HLOOKUP(M7V!$AD$40,'M7V-spec'!$T$35:$W$44,5,0)","v":"●"}]
[null,5,null," DIN5480",null,null,null,null,null,null,null,null," W35×2×16×9 g",null,null,null,null,null,null,"●","-","-","-",null,null,null,5,{"$f":"HLOOKUP(M7V!$AD$40,'M7V-spec'!$T$35:$W$44,6,0)","v":"●"}]
[null,6,null," DIN5480",null,null,null,null,null,null,null,null," W40×2×18×9 g",null,null,null,null,null,null,"●","●","-","-",null,null,null,6,{"$f":"HLOOKUP(M7V!$AD$40,'M7V-spec'!$T$35:$W$44,7,0)","v":"●"}]
[null,7,null," DIN5480",null,null,null,null,null,null,null,null," W45×2×21×9 g",null,null,null,null,null,null,"-","●","●","-",null,null,null,7,{"$f":"HLOOKUP(M7V!$AD$40,'M7V-spec'!$T$35:$W$44,8,0)","v":"-"}]
[null,8,null," DIN5480",null,null,null,null,null,null,null,null," W50×2×24×9 g",null,null,null,null,null,null,"-","-","●","●",null,null,null,8,{"$f":"HLOOKUP(M7V!$AD$40,'M7V-spec'!$T$35:$W$44,9,0)","v":"-"}]
[null,9,null," ANSI B92.1",null,null,null,null,null,null,null,null," 1 1/4 in 14T 12/24DP",null,null,null,null,null,null,"●","-","-","-",null,null,null,9,{"$f":"HLOOKUP(M7V!$AD$40,'M7V-spec'!$T$35:$W$44,10,0)","v":"●"}]
[]
[7,"Maximum Displacement",null,null,null,null,null,null,null,null,null,null,null,null,null,null,null,null,null,null,null,null,null,null,null,null,"QMAX",null,null,null,null,null,null,"QMIN"]
[null,"Size",85," A ：   85","●","B  ：   80","●","C ：   75","●","D  ：  70","●",null,null,null,null,null,null,null,null,null,null,null,null,null,null,null,null,85,112,160,212,null,null,null,85,112,160,212]
[null,null,112," A ： 112 ","●","B ： 107 ","●","C： 100","●","D ： 95 ","●",null,null,null,null,null,null,null,null,null,null,null,null,null,null,null,"A",85,112,160,215,{"$f":"HLOOKUP(M7V!$AD$40,$AB$47:$AE$52,2,0)","v":85},null,"A",51,68,96,86,{"$f":"HLOOKUP(M7V!$AD$40,$AI$47:$AL$52,2,0)","v":51}]
[null,null,160," A ： 160 ","●","B ： 155 ","●","C： 150","●","D ： 140 ","●",null,null,null,null,null,null,null,null,null,null,null,null,null,null,null,"B",80,107,155,200,{"$f":"HLOOKUP(M7V!$AD$40,$AB$47:$AE$52,3,0)","v":80},null,"B",40,50,80,70,{"$f":"HLOOKUP(M7V!$AD$40,$AI$47:$AL$52,3,0)","v":40}]
[null,null,212," A  ：  215","●","B  ：  200 ","●","C ：  190","●","D  ：  180 ","●",null,null,null,null,null,null,null,null,null,null,null,null,null,null,null,"C",75,100,150,190,{"$f":"HLOOKUP(M7V!$AD$40,$AB$47:$AE$52,4,0)","v":75},null,"C",30,40,60,60,{"$f":"HLOOKUP(M7V!$AD$40,$AI$47:$AL$52,4,0)","v":30}]
[null,null,null,null,null,null,null,null,null,null,null,null,null,null,null,null,null,null,null,null,null,null,null,null,null,null,"D",70,95,140,180,{"$f":"HLOOKUP(M7V!$AD$40,$AB$47:$AE$52,5,0)","v":70},null,"D","-",30,40,"-",{"$f":"HLOOKUP(M7V!$AD$40,$AI$47:$AL$52,5,0)","v":"-"}]
[8,"Minimum Displacement",null,null,null,null,null,null,null,null,null,null,null,null,null,null,null,null,null,null,null,null,null,null,null,null,null,null,null,null,null,{"$f":"VLOOKUP(M7V!AD66,AA48:AF51,6,0)","v":85},null,"E","-",22,32,"-",{"$f":"HLOOKUP(M7V!$AD$40,$AI$47:$AL$52,6,0)","v":"-"}]
[null,"Size",85," A ： 51 ","●","B ： 40 ","●","C ： 30 ","●","D ：  -","-","E ：  -","-",null,null,null,null,null,null,null,null,null,null,null,null,null,null,null,null,null,null,null,null,null,null,null,null,null,{"$f":"VLOOKUP(M7V!AD67,AH48:AM52,6,0)","v":51}]
[null,null,112," A ： 68 ","●","B ： 50 ","●","C ： 40 ","●","D ： 30 ","●","E ： 22 ","●"]
[null,null,160," A ： 96 ","●","B ： 80 ","●","C ： 60 ","●","D ： 40 ","●","E ： 32 ","●"]
[null,null,212," A  ：  86 ","●","B ：   70 ","●","C ： 60 ","●","D ：  -","-","E ：  -","-"]
[]
[9,"Speed Sensor",null,null,null,null,null,null,null,null,null,null,null,null,null,null,null,null,null,85,112,160,212]
[null,1,null," Without Speed Sensor",null,null,null,null,null,null,null,null,null,null,null,null,null,null,null,"●","●","●","●"]
[null,2,null," With Speed Sensor (A port side)",null,null,null,null,null,null,null,null,null,null,null,null,null,null,null,"●","●","●","●"]
[null,"B",null," With Speed Sensor (B port side)",null,null,null,null,null,null,null,null,null,null,null,null,null,null,null,"●","●","●","●"]
[]
[10,"Regulator (See the table on page 11 for the possible combinations of regulator and optional valve options.)",null,null,null,null,null,null,null,null,null,null,null,null,null,null,null,null,null,85,112,160,212]
[null,"T","T1"," Electric Two Position Displacement control",null,null,null,null," Electric Control, 24 V",null,null,null,null,null,null,null,null,null,null,"●","●","●","●",null,null,null,{"$f":"M7V!AD71&M7V!AD85","v":"T1X"},{"$f":"VLOOKUP(AA64,Com!P1:Q56,2,0)","v":"○"},{"$f":"VLOOKUP('M7V-spec'!AA64,Com!S1:T28,2,0)","v":1}]
[null,null,"T2",null,null,null,null,null," Electric Control, 12 V",null,null,null,null,null,null,null,null,null,null,"●","●","●","●"]
[null,"y","Y1","Hydraulic Two Position Displacement Control",null,null,null,null," Negative Control",null,null,null,null,null,null,null,null,null,null,"●","●","●","●"]
[null,"E","E1"," Electric Proportional Control",null,null,null,null," Negative Control, 24V ",null,null,null,null,null,null,null,null,null,null,"●","●","●","●"]
[null,null,"E2",null,null,null,null,null," Positive Control, 24V ",null,null,null,null,null,null,null,null,null,null,"●","●","●","●"]
[null,null,"E3",null,null,null,null,null," Negative Control, 12V ",null,null,null,null,null,null,null,null,null,null,"●","●","●","●"]
[null,null,"E4",null,null,null,null,null," Positive Control, 12V ",null,null,null,null,null,null,null,null,null,null,"●","●","●","●"]
[null,"P","P1"," Hydraulic Proportional control",null,null,null,null," Negative Control, Pi = 2.5MPa",null,null,null,null,null,null,null,null,null,null,"●","●","●","●"]
[null,null,"P2",null,null,null,null,null," Positive Control, Pi = 2.5MPa",null,null,null,null,null,null,null,null,null,null,"●","●","●","●"]
[null,null,"P3",null,null,null,null,null," Negative Control, Pi = 1.0MPa",null,null,null,null,null,null,null,null,null,null,"●","●","●","●"]
[null,null,"P4",null,null,null,null,null," Positive Control, Pi = 1.0MPa",null,null,null,null,null,null,null,null,null,null,"●","●","●","●"]
[null,"H","H1"," Pressure Related Control",null,null,null,null," Without Pressure Increase ",null,null,null,null,null,null,null,null,null,null,"●","●","●","●"]
[null,null,"H2",null,null,null,null,null," With Pressure Increase",null,null,null,null,null,null,null,null,null,null,"●","●","●","●"]
[null,null,"H3",null,null,null,null,null," With Pressure Increase and Hydraulic Remote Control",null,null,null,null,null,null,null,null,null,null,"●","●","●","●"]
[]
[11,"Optional Valves",null,null,"(See the table on page 11 for the possible combinations of optional valve and regulator options.)",null,null,null,null,null,null,null,null,null,null,null,null,null,null,85,112,160,212]
[null,"X","X"," Without Any Optional Valve",null,null,null,null,null,null,null,null,null,null,null,null,null,null,null,"●","●","●","●"]
[null,"A","A1"," Pressure Control Valve",null,null,null,null," With Pressure Control Valve",null,null,null,null,null,null,null,null,null,null,"●","●","●","●"]
[null,"B","B1"," Two Position Displacement Control",null,null,null,null," With Electric Two-Position Control Valve, 24 V",null,null,null,null,null,null,null,null,null,null,"●","●","●","●"]
[null,null,"B2",null,null,null,null,null," With Electric Two-Position Control Valve, 12 V",null,null,null,null,null,null,null,null,null,null,"●","●","●","●"]
[]
[12,"Accessories",null,null,null,null,null,null,null,null,null,null,null,null,null,null,null,null,null,85,112,160,212]
[null,"X",null," Without Any Accessory",null,null,null,null,null,null,null,null,null,null,null,null,null,null,null,"●","●","●","●",null,null,null,"X",{"$f":"HLOOKUP(M7V!$AD$40,'M7V-spec'!$T$85:$W$88,2,0)","v":"●"},{"$f":"VLOOKUP(M7V!AD89,AA86:AB88,2,0)","v":"●"},null,"X","a",{"$f":"VLOOKUP(M7V!AD89,AE86:AF88,2,0)","v":"a"}]
[null,1,null," Without Flushing Spool",null,null,null,null,null,null,null,null,null,null,null,null,null,null,null,"●","●","●","●",null,null,null,1,{"$f":"HLOOKUP(M7V!$AD$40,'M7V-spec'!$T$85:$W$88,3,0)","v":"●"},null,null,1,"b"]
[null,2,null," With Low Pressure Relief Valve",null,null,null,null,null,null,null,null,null,null,null,null,null,null,null,"○","○","○","○",null,null,null,2,{"$f":"HLOOKUP(M7V!$AD$40,'M7V-spec'!$T$85:$W$88,4,0)","v":"○"},null,null,2,"c"]
[]
[13,"Counter Balance Valve",null,null,null,null,null,null,null,null,null,null,null,null,null,null,null,null,null,85,112,160,212]
[null,"X",null," Without Counter Balance Valve",null,null,null,null,null,null,null,null,null,null,null,null,null,null,null,"●","●","●","●",null,null,null,"X",{"$f":"HLOOKUP(M7V!$AD$40,'M7V-spec'!$T$90:$W$93,2,0)","v":"●"},{"$f":"VLOOKUP(M7V!AD93,AA91:AB93,2,0)","v":"●"},null,"X","a",{"$f":"VLOOKUP(M7V!AD93,AE91:AF93,2,0)","v":"a"}]
[null,1,null," With Counter Balance Valve",null,null,null,null,"Hoist : CW rotation (port A inlet)",null,null,null,null,null,"viewed from the shaft end",null,null,null,null,"○","○","○","○",null,null,null,1,{"$f":"HLOOKUP(M7V!$AD$40,'M7V-spec'!$T$90:$W$93,3,0)","v":"○"},null,null,1,"b"]
[null,2,null," With Counter Balance Valve",null,null,null,null,"Hoist : CCW rotation (port B inlet)",null,null,null,null,null,"viewed from the shaft end",null,null,null,null,"○","○","○","○",null,null,null,2,{"$f":"HLOOKUP(M7V!$AD$40,'M7V-spec'!$T$90:$W$93,4,0)","v":"○"},null,null,2,"b"]
[]
[14,"Response Speed of Control",null,null,null,null,null,null,null,null,null,null,null,null,null,null,null,null,null,85,112,160,212]
[null,"N",null," Standard",null,null,null,null,null,null,null,null,null,null,null,null,null,null,null,"●","●","●","●"]
[]
[15,"Design Code",null,null,null,null,null,null,null,null,null,null,null,null,null,null,null,null,null,85,112,160,212]
[null,"**",null," 01~",null,null,null,null,null,null,null,null,null,null,null,null,null,null,null,"●","●","●","●"]
[]
[null,null,null,null,null,null,null,null,null,null,null,null,null,"　"]
[null,"●　＝　Available",null,null,null,null,"○　＝　Under Development",null,null,null,null,"―　　＝　　Not Available"]
[]
[null,"★ M7V Control Options ",null,null,null,null,null,null,null,null,null,null,null,null,"Options for Optional Valves (Code [11])",null,null,null,null,null,null,null,null,null,null,null,null,"qmax","qmax","qmin","q100","q60"]
[null,"Note:  Control options are common to all M7V motors",null,null,null,null,null,null,null,null,null,null,null,null,"Without Any Optional Valve",null,"With Cut-Off Valve",null,"With Electric \nTwo-Position Control Valve (24V)",null,"With Electric \nTwo-Position Control Valve (12V)",null,null,null,null,null,85,{"$f":"IF(AC105<AE105,AE105,AC105)","v":6150},{"$f":"IF(M7V!AF16=AC117,AE105,IF(M7V!AF16<0.6*AC117,AF105,IF(M7V!AF16>0.94*AC117,AE105,326000/M7V!AF16)))","v":6150},{"$f":"IF(M7V!AI16=AC117,AE105,IF(M7V!AI16<0.6*AC117,AF105,IF(M7V!AI16>0.94*AC117,AE105,326000/M7V!AI16)))","v":6150},3900,6150]
[null,"Options for Regulator (Code[10])",null,null,null,null,null,null,null,null,null,null,null,null,"X",null,"A1",null,"B1",null,"B2",null,null,null,null,null,112,{"$f":"IF(AC106<AE106,AE106,AC106)","v":5600},{"$f":"IF(M7V!AF16=AC117,AE106,IF(M7V!AF16<0.6*AC117,AF106,IF(M7V!AF16>0.96*AC117,AE106,380800/M7V!AF16)))","v":5600},{"$f":"IF(M7V!AI16=AC117,AE106,IF(M7V!AI16<0.6*AC117,AF106,IF(M7V!AI16>0.96*AC117,AE106,380800/M7V!AI16)))","v":5600},3550,5600]
[null,"T","T1","Two Position \nDisplacement Control",null,null,null," Electric Control, 24 V",null,null,null,null,null,null,"●",null,"-",null,"-",null,"-",null,null,null,null,null,160,{"$f":"IF(AC107<AE107,AE107,AC107)","v":4900},{"$f":"IF(M7V!AF16=AC117,AE107,IF(M7V!AF16<0.6*AC117,AF107,IF(M7V!AF16>0.95*AC117,AE107,470400/M7V!AF16)))","v":4900},{"$f":"IF(M7V!AI16=AC117,AE107,IF(M7V!AI16<0.6*AC117,AF107,IF(M7V!AI16>0.95*AC117,AE107,470400/M7V!AI16)))","v":4900},3100,4900]
[null,null,"T2",null,null,null,null," Electric Control, 12 V",null,null,null,null,null,null,"●",null,"-",null,"-",null,"-",null,null,null,null,null,212,{"$f":"IF(AC108<AE108,AE108,AC108)","v":4600},{"$f":"IF(M7V!AF16=AC117,AE108,IF(M7V!AF16<0.4*AC117,AF108,IF(M7V!AF16>0.63*AC117,AE108,395600/M7V!AF16)))","v":4600},{"$f":"IF(M7V!AI16=AC117,AE108,IF(M7V!AI16<0.4*AC117,AF108,IF(M7V!AI16>0.63*AC117,AE108,395600/M7V!AI16)))","v":4600},2900,4600]
[null,"y","Y1","Hydraulic Two Position Displacement Control",null,null,null," Negative Control",null,null,null,null,null,null,"●",null,"●",null,"-",null,"-",null,null,null,null,null,null,{"$f":"VLOOKUP(M7V!AD40,AA105:AD108,2,0)","v":6150},null,{"$f":"VLOOKUP(M7V!AD40,AA105:AD108,4,0)","v":6150}]
[null,"E","E1","Electric\nProportional \nControl",null,null,null," Negative Control, 24V",null,null,null,null,null,null,"●",null,"●",null,"-",null,"-"]
[null,null,"E2",null,null,null,null," Positive Control, 24V",null,null,null,null,null,null,"●",null,"○",null,"-",null,"-"]
[null,null,"E3",null,null,null,null," Negative Control, 12V",null,null,null,null,null,null,"●",null,"●",null,"-",null,"-",null,null,null,null,null,null,"max. dis",null,"min.dis",null,"Nmax.","Nnom","Pmax","Pnom","Qmax","Tmax","Cracking press"]
[null,null,"E4",null,null,null,null," Positive Control, 12V",null,null,null,null,null,null,"●",null,"○",null,"-",null,"-",null,null,null,null,null,85,68,88.5,0,68,6150,3900,45,40,332,541,0.7,1.8]
[null,"P","P1","Hydraulic \nProportional \nControl",null,null,null," Negative Control, Pi = 2.5MPa",null,null,null,null,null,null,"●",null,"●",null,"-",null,"-",null,null,null,null,null,112,90,112,0,90,5600,3550,45,40,398,713,0.7,1.8]
[null,null,"P2",null,null,null,null," Positive Control, Pi = 2.5MPa",null,null,null,null,null,null,"●",null,"○",null,"-",null,"-",null,null,null,null,null,160,128,160,0,128,4900,3100,45,40,496,1019,0.65,0.9]
[null,null,"P3",null,null,null,null," Negative Control, Pi = 1.0MPa",null,null,null,null,null,null,"●",null,"●",null,"-",null,"-",null,null,null,null,null,212,170,215,0,170,4600,2900,50,42,623,1437,0.65,0.9]
[null,null,"P4",null,null,null,null," Positive Control, Pi = 1.0MPa",null,null,null,null,null,null,"●",null,"○",null,"-",null,"-",null,null,null,null,null,null,{"$f":"VLOOKUP(M7V!$AD$40,AA113:AB116,2,0)","v":68},{"$f":"VLOOKUP(M7V!$AD$40,AA113:AC116,3,0)","v":88.5},{"$f":"VLOOKUP(M7V!$AD$40,AA113:AD116,4,0)","v":0},{"$f":"VLOOKUP(M7V!$AD$40,AA113:AE116,5,0)","v":68},{"$f":"VLOOKUP(M7V!$AD$40,AA113:AF116,6,0)","v":6150},{"$f":"VLOOKUP(M7V!$AD$40,AA113:AG116,7,0)","v":3900},{"$f":"IF(AG91=\"a\",(VLOOKUP(M7V!$AD$40,AA113:AH116,8,0)),34.3)","v":45},{"$f":"IF(AG91=\"a\",(VLOOKUP(M7V!$AD$40,AA113:AI116,9,0)),34.3)","v":40},{"$f":"VLOOKUP(M7V!$AD$40,AA113:AK116,10,0)","v":332},{"$f":"VLOOKUP(M7V!$AD$40,AA113:AK116,11,0)","v":541},{"$f":"VLOOKUP(M7V!$AD$40,AA113:AL116,12,0)","v":0.7},{"$f":"VLOOKUP(M7V!$AD$40,AA113:AM116,13,0)","v":1.8}]
[null,"H","H1","Pressure \nRelated \nControl",null,null,null," Without Pressure Increase ",null,null,null,null,null,null,"●",null,"-",null,"●",null,"●"]
[null,null,"H2",null,null,null,null," With Pressure Increase",null,null,null,null,null,null,"●",null,"-",null,"●",null,"●"]
[null,null,"H3",null,null,null,null," With Pressure Increase and Hydraulic Remote Control",null,null,null,null,null,null,"●",null,"-",null,"●",null,"●"]
[]
[null,"●　＝　Available",null,null,null,null,"○　＝　Under Development",null,null,null,null,"―　　＝　　Not Available"]

{"sheet":"M7VC-spec","index":1,"n_rows":122,"n_cols":41,"rows_kept":122,"cut":false,"hidden":true,"merged":[[119,14,119,15],[119,16,119,17],[119,18,119,19],[119,20,119,21],[24,6,24,7],[24,10,24,11],[117,1,119,1],[117,3,119,6],[117,14,117,15],[117,16,117,17],[117,18,117,19],[117,20,117,21],[118,14,118,15],[118,16,118,17],[118,18,118,19],[118,20,118,21],[115,14,115,15],[115,16,115,17],[115,18,115,19],[115,20,115,21],[116,14,116,15],[116,16,116,17],[116,18,116,19],[116,20,116,21],[113,1,116,1],[113,3,116,6],[113,14,113,15],[113,16,113,17],[113,18,113,19],[113,20,113,21],[114,14,114,15],[114,16,114,17],[114,18,114,19],[114,20,114,21],[112,14,112,15],[112,16,112,17],[112,18,112,19],[112,20,112,21],[109,1,112,1],[109,3,112,6],[109,14,109,15],[109,16,109,17],[109,18,109,19],[109,20,109,21],[110,14,110,15],[110,16,110,17],[110,18,110,19],[110,20,110,21],[108,3,108,6],[108,14,108,15],[108,16,108,17],[108,18,108,19],[108,20,108,21],[111,14,111,15],[111,16,111,17],[111,18,111,19],[111,20,111,21],[105,1,105,13],[106,1,107,1],[106,3,107,6],[106,14,106,15],[106,16,106,17],[106,18,106,19],[98,1,98,2],[103,14,103,21],[104,14,104,15],[104,16,104,17],[104,18,104,19],[104,20,104,21],[106,20,106,21],[107,14,107,15],[107,16,107,17],[107,18,107,19],[107,20,107,21],[70,1,73,1],[70,3,73,7],[74,1,76,1],[74,3,76,7],[81,1,82,1],[81,3,82,7],[52,1,55,1],[63,1,64,1],[63,3,64,7],[65,3,65,7],[66,1,69,1],[66,3,69,7],[28,10,28,11],[29,10,29,11],[30,10,30,11],[31,10,31,11],[33,10,33,13],[46,1,49,1],[23,10,23,11],[27,1,27,2],[27,10,27,11],[20,6,20,7],[20,10,20,11],[21,10,21,11],[22,10,22,11],[19,6,19,7],[19,10,19,11],[5,20,5,21],[6,20,6,21],[15,1,15,2],[18,6,18,7],[18,10,18,11]]}
[]
["M7V Ordering Code"]
[]
[]
[null,"Please fill in the Inquiry Form on page 39 in order to specify the requirement."]
[null,null,null,1,null,2,3,4,5,6,null,7,8,9,10,11,12,13,14,null,15]
[null,null,null,"M7V",null,112,"A","A",1,1,"-","A","A",1,"T1","X","X","X","N","-",1]
[null,null,null,null,null,null,null,null,null,null,null,null,null,null,null,null,null,null,null,null,null,null,null,null,null,null,null,null,null,null,null,null,null,null,null,null,null,null,null,{"$f":"IF(M7VC!AG1=\"Language : English\",\"General(Other)\",\"一般(その他)\")","v":"General(Other)"}," "]
[1,"M7V Series ",null,null,null,null,null,null,null,null,null,null,null,null,null,null,null,null,null,null,null,null,null,null,null,null,null,null,null,null,null,null,null,null,null,null,null,null,null,{"$f":"IF(M7VC!AG1=\"Language : English\",\"Travel(Closed)\",\"走行(クローズド)\")","v":"Travel(Closed)"},{"$f":"IF(M7VC!AG1=\"Language : English\",\"For travel (closed) applications, the motor may require flushing valve to prevent high temperature inside the system.\",\"走行(クローズド)用途では、システム内部の高温を防止するために、モータにフラッシングバルブが必要になる場合があります。\")","v":"For travel (closed) applications, the motor may require flushing valve to prevent high temperature inside the system."}]
[null,"M7V Series, Variable Displacement, Axial Piston Motor, Applicable in Both Open and Closed Loops",null,null,null,null,null,null,null,null,null,null,null,null,null,null,null,null,null,null,null,null,null,null,null,null,null,null,null,null,null,null,null,null,null,null,null,null,null,{"$f":"IF(M7VC!AG1=\"Language : English\",\"Travel(Open)\",\"走行(オープン)\")","v":"Travel(Open)"},{"$f":"IF(M7VC!AG1=\"Language : English\",\"For travel (open) applications, the motor may require counterbalance valves (both directions) to prevent cavitation inside the motor during braking.\",\"走行(クローズド)用途では、ブレーキ時のモータ内部のキャビテーションを防止するために、モータにカウンターバランス弁(両方向)が必要になる場合があります。\")","v":"For travel (open) applications, the motor may require counterbalance valves (both directions) to prevent cavitation inside the motor during braking."}]
[null,null,null,null,null,null,null,null,null,null,null,null,null,null,null,null,null,null,null,null,null,null,null,null,null,null,null,null,null,null,null,null,null,null,null,null,null,null,null,{"$f":"IF(M7VC!AG1=\"Language : English\",\"Hoist\",\"巻上\")","v":"Hoist"},{"$f":"IF(M7VC!AG1=\"Language : English\",\"For hoist applications, the motor may require counterbalance valves (one directions) to prevent cavitation inside the motor during braking.\",\"巻上用途では、ブレーキ時に発生するモータ内部のキャビテーションを防止するために、カウンターバランス弁(片方向)が必要になる場合があります。\")","v":"For hoist applications, the motor may require counterbalance valves (one directions) to prevent cavitation inside the motor during braking."}]
[2,"Size",null,null,null,null,null,null,null,null,null,null,null,null,null,null,null,null,null,85,112,160,212,null,null,null,null,null,null,null,null,null,null,null,null,null,null,null,null,{"$f":"IF(M7VC!AG1=\"Language : English\",\"Swing\",\"旋回\")","v":"Swing"},{"$f":"IF(M7VC!AG1=\"Language : English\",\"For swing applications, the motor may require counterbalance valves (for swing) to prevent cavitation inside the motor during braking.\",\"旋回用途では、ブレーキ時に発生するモータ内部のキャビテーションを防止するために、カウンターバランス弁(旋回用)が必要になる場合があります。\")","v":"For swing applications, the motor may require counterbalance valves (for swing) to prevent cavitation inside the motor during braking."}]
[null," Standard Size　",null,null,null,null,null,null,null,null,null,null,null,null,null,null,null,null,null,"-","-","●","-"]
[]
[3,"Series Specifications",null,null,null,null,null,null,null,null,null,null,null,null,null,null,null,null,null,85,112,160,212]
[null,"A",null," Standard",null,null,null,null,null,null,null,null,null,null,null,null,null,null,null,"-","-","●","-"]
[]
[4,"Mounting Flange and Port Position"]
[null,null,null," Mounting",null,null,null,null,null,null,null,null," Port position",null,null,null,null,null,null,85,112,160,212]
[null,"A",null,null,null,null,null,null,null,null,null,null,null,null,null,null,null,null,null,"-","-","-","-",null,null,null,"A",{"$f":"HLOOKUP(M7VC!$AD$53,'M7VC-spec'!$T$19:$W$25,2,0)","v":"-"},{"$f":"VLOOKUP(M7VC!AD55,AA20:AB25,2,0)","v":"●"},null,{"$f":"M7VC!AD55&M7VC!AD59&M7VC!AD62","v":"C47"},{"$f":"VLOOKUP(AE20,Com!Y1:Z24,2,0)","v":"○"}]
[null,"B",null,null,null,null,null,null,null,null,null,null,null,null,null,null,null,null,null,"-","-","-","-",null,null,null,"B",{"$f":"HLOOKUP(M7VC!$AD$53,'M7VC-spec'!$T$19:$W$25,3,0)","v":"-"}]
[null,"C",null," Spigot φ200 (φ250 - 2bolt Mount)",null,null,null,null,null,null,null,null," Rear",null,null,null,null,null,null,"-","-","●","-",null,null,null,"C",{"$f":"HLOOKUP(M7VC!$AD$53,'M7VC-spec'!$T$19:$W$25,4,0)","v":"●"}]
[null,"D",null," Spigot φ200 (φ250 - 2bolt Mount)",null,null,null,null,null,null,null,null," Side",null,null,null,null,null,null,"-","-","○","-",null,null,null,"D",{"$f":"HLOOKUP(M7VC!$AD$53,'M7VC-spec'!$T$19:$W$25,5,0)","v":"○"}]
[null,"E",null," Spigot φ200 (φ250 - 2bolt Mount)",null,null,null,null,null,null,null,null," Bottom",null,null,null,null,null,null,"-","-","○","-",null,null,null,"E",{"$f":"HLOOKUP(M7VC!$AD$53,'M7VC-spec'!$T$19:$W$25,6,0)","v":"○"}]
[null,"F",null,null,null,null,null,null,null,null,null,null,null,null,null,null,null,null,null,"-","-","-","-",null,null,null,"F",{"$f":"HLOOKUP(M7VC!$AD$53,'M7VC-spec'!$T$19:$W$25,7,0)","v":"-"}]
[]
[5,"Port and Flange Fixing Thread "]
[null,null,null," Threaded Port Type",null,null,null,null,null,null,null,null," Flange Fixing Thread Type",null,null,null,null,null,null,85,112,160,212]
[null,1,null," ANSI ISO11926",null,null,null,null,null,null,null,null," ANSI ASMEB1.1",null,null,null,null,null,null,"-","-","○","-",null,null,null,1,{"$f":"HLOOKUP(M7VC!$AD$53,'M7VC-spec'!T28:W32,2,0)","v":"○"},{"$f":"VLOOKUP(M7VC!AD59,AA29:AB30,2,0)","v":"●"}]
[null,2,null," ANSI ISO11926",null,null,null,null,null,null,null,null," Metric ISO724",null,null,null,null,null,null,"-","-","-","-",null,null,null,4,{"$f":"HLOOKUP(M7VC!$AD$53,'M7VC-spec'!T28:W32,5,0)","v":"●"}]
[null,3,null," Metric ISO6149",null,null,null,null,null,null,null,null," Metric ISO724",null,null,null,null,null,null,"-","-","-","-"]
[null,4,null," Parallel Piping ISO228",null,null,null,null,null,null,null,null," Metric ISO724",null,null,null,null,null,null,"-","-","●","-"]
[]
[6,"Shaft End "]
[null,null,null," Standard",null,null,null,null,null,null,null,null," Specifications",null,null,null,null,null,null,85,112,160,212]
[null,1,null," ANSI B92.1",null,null,null,null,null,null,null,null," 1 1/2 in 17T 12/24DP",null,null,null,null,null,null,"-","-","-","-",null,null,null,1,{"$f":"HLOOKUP(M7VC!$AD$53,'M7VC-spec'!$T$35:$W$44,2,0)","v":"-"},{"$f":"VLOOKUP(M7VC!AD62,AA36:AB43,2,0)","v":"●"}]
[null,2,null," ANSI B92.1",null,null,null,null,null,null,null,null," 1 3/4 in 13T 8/16DP",null,null,null,null,null,null,"-","-","○","-",null,null,null,2,{"$f":"HLOOKUP(M7VC!$AD$53,'M7VC-spec'!$T$35:$W$44,3,0)","v":"○"}]
[null,3,null," ANSI B92.1",null,null,null,null,null,null,null,null," 2 in 15T 8/16DP",null,null,null,null,null,null,"-","-","○","-",null,null,null,3,{"$f":"HLOOKUP(M7VC!$AD$53,'M7VC-spec'!$T$35:$W$44,4,0)","v":"○"}]
[null,4,null," ANSI B92.1",null,null,null,null,null,null,null,null," 1 3/8 in 21T 16/32DP",null,null,null,null,null,null,"-","-","-","-",null,null,null,4,{"$f":"HLOOKUP(M7VC!$AD$53,'M7VC-spec'!$T$35:$W$44,5,0)","v":"-"}]
[null,5,null," DIN5480",null,null,null,null,null,null,null,null," W35×2×16×9 g",null,null,null,null,null,null,"-","-","-","-",null,null,null,5,{"$f":"HLOOKUP(M7VC!$AD$53,'M7VC-spec'!$T$35:$W$44,6,0)","v":"-"}]
[null,6,null," DIN5480",null,null,null,null,null,null,null,null," W40×2×18×9 g",null,null,null,null,null,null,"-","-","-","-",null,null,null,6,{"$f":"HLOOKUP(M7VC!$AD$53,'M7VC-spec'!$T$35:$W$44,7,0)","v":"-"}]
[null,7,null," DIN5480",null,null,null,null,null,null,null,null," W45×2×21×9 g",null,null,null,null,null,null,"-","-","●","-",null,null,null,7,{"$f":"HLOOKUP(M7VC!$AD$53,'M7VC-spec'!$T$35:$W$44,8,0)","v":"●"}]
[null,8,null," DIN5480",null,null,null,null,null,null,null,null," W50×2×24×9 g",null,null,null,null,null,null,"-","-","●","-",null,null,null,8,{"$f":"HLOOKUP(M7VC!$AD$53,'M7VC-spec'!$T$35:$W$44,9,0)","v":"●"}]
[null,9,null," ANSI B92.1",null,null,null,null,null,null,null,null," 1 1/4 in 14T 12/24DP",null,null,null,null,null,null,"-","-","-","-",null,null,null,9,{"$f":"HLOOKUP(M7VC!$AD$53,'M7VC-spec'!$T$35:$W$44,10,0)","v":"-"}]
[]
[7,"Maximum Displacement",null,null,null,null,null,null,null,null,null,null,null,null,null,null,null,null,null,null,null,null,null,null,null,null,"QMAX",null,null,null,null,null,null,"QMIN"]
[null,"Size",85," A ：   85","-","B  ：   80","-","C ：   75","-","D  ：  70","-",null,null,null,null,null,null,null,null,null,null,null,null,null,null,null,null,85,112,160,212,null,null,null,85,112,160,212]
[null,null,112," A ： 112 ","-","B ： 107 ","-","C： 100","-","D ： 95 ","-",null,null,null,null,null,null,null,null,null,null,null,null,null,null,null,"A",85,112,160,215,{"$f":"HLOOKUP(M7VC!$AD$53,$AB$47:$AE$52,2,0)","v":160},null,"A",51,68,96,86,{"$f":"HLOOKUP(M7VC!$AD$53,$AI$47:$AL$52,2,0)","v":96}]
[null,null,160," A ： 160 ","●","B ： 155 ","●","C： 150","●","D ： 140 ","●",null,null,null,null,null,null,null,null,null,null,null,null,null,null,null,"B",80,107,155,200,{"$f":"HLOOKUP(M7VC!$AD$53,$AB$47:$AE$52,3,0)","v":155},null,"B",40,50,80,70,{"$f":"HLOOKUP(M7VC!$AD$53,$AI$47:$AL$52,3,0)","v":80}]
[null,null,212," A  ：  215","-","B  ：  200 ","-","C ：  190","-","D  ：  180 ","-",null,null,null,null,null,null,null,null,null,null,null,null,null,null,null,"C",75,100,150,190,{"$f":"HLOOKUP(M7VC!$AD$53,$AB$47:$AE$52,4,0)","v":150},null,"C",30,40,60,60,{"$f":"HLOOKUP(M7VC!$AD$53,$AI$47:$AL$52,4,0)","v":60}]
[null,null,null,null,null,null,null,null,null,null,null,null,null,null,null,null,null,null,null,null,null,null,null,null,null,null,"D",70,95,140,180,{"$f":"HLOOKUP(M7VC!$AD$53,$AB$47:$AE$52,5,0)","v":140},null,"D","-",30,40,"-",{"$f":"HLOOKUP(M7VC!$AD$53,$AI$47:$AL$52,5,0)","v":40}]
[8,"Minimum Displacement",null,null,null,null,null,null,null,null,null,null,null,null,null,null,null,null,null,null,null,null,null,null,null,null,null,null,null,null,null,{"$f":"VLOOKUP(M7VC!AD66,AA48:AF51,6,0)","v":160},null,"E","-",22,32,"-",{"$f":"HLOOKUP(M7VC!$AD$53,$AI$47:$AL$52,6,0)","v":32}]
[null,"Size",85," A ： 51 ","-","B ： 40 ","-","C ： 30 ","-","D ：  -","-","E ：  -","-",null,null,null,null,null,null,null,null,null,null,null,null,null,null,null,null,null,null,null,null,null,null,null,null,null,{"$f":"VLOOKUP(M7VC!AD67,AH48:AM52,6,0)","v":96}]
[null,null,112," A ： 68 ","-","B ： 50 ","-","C ： 40 ","-","D ： 30 ","-","E ： 22 ","-"]
[null,null,160," A ： 96 ","●","B ： 80 ","●","C ： 60 ","●","D ： 40 ","●","E ： 32 ","●"]
[null,null,212," A  ：  86 ","-","B ：   70 ","-","C ： 60 ","-","D ：  -","-","E ：  -","-"]
[]
[9,"Speed Sensor",null,null,null,null,null,null,null,null,null,null,null,null,null,null,null,null,null,85,112,160,212]
[null,1,null," Without Speed Sensor",null,null,null,null,null,null,null,null,null,null,null,null,null,null,null,"-","-","●","-"]
[null,2,null," With Speed Sensor (A port side)",null,null,null,null,null,null,null,null,null,null,null,null,null,null,null,"-","-","●","-"]
[null,"B",null," With Speed Sensor (B port side)",null,null,null,null,null,null,null,null,null,null,null,null,null,null,null,"-","-","●","-"]
[]
[10,"Regulator (See the table on page 11 for the possible combinations of regulator and optional valve options.)",null,null,null,null,null,null,null,null,null,null,null,null,null,null,null,null,null,85,112,160,212]
[null,"T","T1"," Electric Two Position Displacement control",null,null,null,null," Electric Control, 24 V",null,null,null,null,null,null,null,null,null,null,"-","-","●","-",null,null,null,{"$f":"M7VC!AD71&M7VC!AD85","v":"T1X"},{"$f":"VLOOKUP(AA64,Com!P1:Q56,2,0)","v":"○"},{"$f":"VLOOKUP('M7VC-spec'!AA64,Com!S1:T28,2,0)","v":1}]
[null,null,"T2",null,null,null,null,null," Electric Control, 12 V",null,null,null,null,null,null,null,null,null,null,"-","-","●","-"]
[null,"y","Y1","Hydraulic Two Position Displacement Control",null,null,null,null," Negative Control",null,null,null,null,null,null,null,null,null,null,"-","-","●","-"]
[null,"E","E1"," Electric Proportional Control",null,null,null,null," Negative Control, 24V ",null,null,null,null,null,null,null,null,null,null,"-","-","●","-"]
[null,null,"E2",null,null,null,null,null," Positive Control, 24V ",null,null,null,null,null,null,null,null,null,null,"-","-","●","-"]
[null,null,"E3",null,null,null,null,null," Negative Control, 12V ",null,null,null,null,null,null,null,null,null,null,"-","-","●","-"]
[null,null,"E4",null,null,null,null,null," Positive Control, 12V ",null,null,null,null,null,null,null,null,null,null,"-","-","●","-"]
[null,"P","P1"," Hydraulic Proportional control",null,null,null,null," Negative Control, Pi = 2.5MPa",null,null,null,null,null,null,null,null,null,null,"-","-","●","-"]
[null,null,"P2",null,null,null,null,null," Positive Control, Pi = 2.5MPa",null,null,null,null,null,null,null,null,null,null,"-","-","●","-"]
[null,null,"P3",null,null,null,null,null," Negative Control, Pi = 1.0MPa",null,null,null,null,null,null,null,null,null,null,"-","-","●","-"]
[null,null,"P4",null,null,null,null,null," Positive Control, Pi = 1.0MPa",null,null,null,null,null,null,null,null,null,null,"-","-","●","-"]
[null,"H","H1"," Pressure Related Control",null,null,null,null," Without Pressure Increase ",null,null,null,null,null,null,null,null,null,null,"-","-","●","-"]
[null,null,"H2",null,null,null,null,null," With Pressure Increase",null,null,null,null,null,null,null,null,null,null,"-","-","●","-"]
[null,null,"H3",null,null,null,null,null," With Pressure Increase and Hydraulic Remote Control",null,null,null,null,null,null,null,null,null,null,"-","-","●","-"]
[]
[11,"Optional Valves",null,null,"(See the table on page 11 for the possible combinations of optional valve and regulator options.)",null,null,null,null,null,null,null,null,null,null,null,null,null,null,85,112,160,212]
[null,"X","X"," Without Any Optional Valve",null,null,null,null,null,null,null,null,null,null,null,null,null,null,null,"-","-","●","-"]
[null,"A","A1"," Pressure Control Valve",null,null,null,null," With Pressure Control Valve",null,null,null,null,null,null,null,null,null,null,"-","-","●","-"]
[null,"B","B1"," Two Position Displacement Control",null,null,null,null," With Electric Two-Position Control Valve, 24 V",null,null,null,null,null,null,null,null,null,null,"-","-","●","-"]
[null,null,"B2",null,null,null,null,null," With Electric Two-Position Control Valve, 12 V",null,null,null,null,null,null,null,null,null,null,"-","-","●","-"]
[]
[12,"Accessories",null,null,null,null,null,null,null,null,null,null,null,null,null,null,null,null,null,85,112,160,212]
[null,"X",null," Without Any Accessory",null,null,null,null,null,null,null,null,null,null,null,null,null,null,null,"-","-","●","-",null,null,null,"X",{"$f":"HLOOKUP(M7VC!$AD$53,'M7VC-spec'!$T$85:$W$88,2,0)","v":"●"},{"$f":"VLOOKUP(M7VC!AD89,AA86:AB88,2,0)","v":"●"},null,"X","a",{"$f":"VLOOKUP(M7VC!AD89,AE86:AF88,2,0)","v":"a"}]
[null,1,null," Without Flushing Spool",null,null,null,null,null,null,null,null,null,null,null,null,null,null,null,"-","-","●","-",null,null,null,1,{"$f":"HLOOKUP(M7VC!$AD$53,'M7VC-spec'!$T$85:$W$88,3,0)","v":"●"},null,null,1,"b"]
[null,2,null," With Low Pressure Relief Valve",null,null,null,null,null,null,null,null,null,null,null,null,null,null,null,"-","-","○","-",null,null,null,2,{"$f":"HLOOKUP(M7VC!$AD$53,'M7VC-spec'!$T$85:$W$88,4,0)","v":"○"},null,null,2,"c"]
[]
[13,"Counter Balance Valve",null,null,null,null,null,null,null,null,null,null,null,null,null,null,null,null,null,85,112,160,212]
[null,"X",null," Without Counter Balance Valve",null,null,null,null,null,null,null,null,null,null,null,null,null,null,null,"-","-","●","-",null,null,null,"X",{"$f":"HLOOKUP(M7VC!$AD$53,'M7VC-spec'!$T$90:$W$93,2,0)","v":"●"},{"$f":"VLOOKUP(M7VC!AD93,AA91:AB93,2,0)","v":"●"},null,"X","a",{"$f":"VLOOKUP(M7VC!AD93,AE91:AF93,2,0)","v":"a"}]
[null,1,null," With Counter Balance Valve",null,null,null,null,"Hoist : CW rotation (port A inlet)",null,null,null,null,null,"viewed from the shaft end",null,null,null,null,"-","-","○","-",null,null,null,1,{"$f":"HLOOKUP(M7VC!$AD$53,'M7VC-spec'!$T$90:$W$93,3,0)","v":"○"},null,null,1,"b"]
[null,2,null," With Counter Balance Valve",null,null,null,null,"Hoist : CCW rotation (port B inlet)",null,null,null,null,null,"viewed from the shaft end",null,null,null,null,"-","-","○","-",null,null,null,2,{"$f":"HLOOKUP(M7VC!$AD$53,'M7VC-spec'!$T$90:$W$93,4,0)","v":"○"},null,null,2,"b"]
[]
[14,"Response Speed of Control",null,null,null,null,null,null,null,null,null,null,null,null,null,null,null,null,null,85,112,160,212]
[null,"N",null," Standard",null,null,null,null,null,null,null,null,null,null,null,null,null,null,null,"-","-","●","-"]
[]
[15,"Design Code",null,null,null,null,null,null,null,null,null,null,null,null,null,null,null,null,null,85,112,160,212]
[null,"**",null," 01~",null,null,null,null,null,null,null,null,null,null,null,null,null,null,null,"-","-","●","-"]
[]
[null,null,null,null,null,null,null,null,null,null,null,null,null,"　"]
[null,"●　＝　Available",null,null,null,null,"○　＝　Under Development",null,null,null,null,"―　　＝　　Not Available"]
[]
[null,"★ M7V Control Options ",null,null,null,null,null,null,null,null,null,null,null,null,"Options for Optional Valves (Code [11])",null,null,null,null,null,null,null,null,null,null,null,null,"qmax","qmax","qmin","q100","q60"]
[null,"Note:  Control options are common to all M7V motors",null,null,null,null,null,null,null,null,null,null,null,null,"Without Any Optional Valve",null,"With Cut-Off Valve",null,"With Electric \nTwo-Position Control Valve (24V)",null,"With Electric \nTwo-Position Control Valve (12V)",null,null,null,null,null,85,{"$f":"IF(AC105<AE105,AE105,AC105)","v":6150},{"$f":"IF(M7VC!AF16=AC117,AE105,IF(M7VC!AF16<0.6*AC117,AF105,IF(M7VC!AF16>0.94*AC117,AE105,326000/M7VC!AF16)))","v":6150},{"$f":"IF(M7VC!AI16=AC117,AE105,IF(M7VC!AI16<0.6*AC117,AF105,IF(M7VC!AI16>0.94*AC117,AE105,326000/M7VC!AI16)))","v":6150},3900,6150]
[null,"Options for Regulator (Code[10])",null,null,null,null,null,null,null,null,null,null,null,null,"X",null,"A1",null,"B1",null,"B2",null,null,null,null,null,112,{"$f":"IF(AC106<AE106,AE106,AC106)","v":5600},{"$f":"IF(M7VC!AF16=AC117,AE106,IF(M7VC!AF16<0.6*AC117,AF106,IF(M7VC!AF16>0.96*AC117,AE106,380800/M7VC!AF16)))","v":5600},{"$f":"IF(M7VC!AI16=AC117,AE106,IF(M7VC!AI16<0.6*AC117,AF106,IF(M7VC!AI16>0.96*AC117,AE106,380800/M7VC!AI16)))","v":5600},3550,5600]
[null,"T","T1","Two Position \nDisplacement Control",null,null,null," Electric Control, 24 V",null,null,null,null,null,null,"●",null,"-",null,"-",null,"-",null,null,null,null,null,160,{"$f":"IF(AC107<AE107,AE107,AC107)","v":4900},{"$f":"IF(M7VC!AF16=AC117,AE107,IF(M7VC!AF16<0.6*AC117,AF107,IF(M7VC!AF16>0.95*AC117,AE107,470400/M7VC!AF16)))","v":4900},{"$f":"IF(M7VC!AI16=AC117,AE107,IF(M7VC!AI16<0.6*AC117,AF107,IF(M7VC!AI16>0.95*AC117,AE107,470400/M7VC!AI16)))","v":4900},3100,4900]
[null,null,"T2",null,null,null,null," Electric Control, 12 V",null,null,null,null,null,null,"●",null,"-",null,"-",null,"-",null,null,null,null,null,212,{"$f":"IF(AC108<AE108,AE108,AC108)","v":4600},{"$f":"IF(M7VC!AF16=AC117,AE108,IF(M7VC!AF16<0.4*AC117,AF108,IF(M7VC!AF16>0.63*AC117,AE108,395600/M7VC!AF16)))","v":4600},{"$f":"IF(M7VC!AI16=AC117,AE108,IF(M7VC!AI16<0.4*AC117,AF108,IF(M7VC!AI16>0.63*AC117,AE108,395600/M7VC!AI16)))","v":4600},2900,4600]
[null,"y","Y1","Hydraulic Two Position Displacement Control",null,null,null," Negative Control",null,null,null,null,null,null,"●",null,"●",null,"-",null,"-",null,null,null,null,null,null,{"$f":"VLOOKUP(M7VC!AD53,AA105:AD108,2,0)","v":4900},null,{"$f":"VLOOKUP(M7VC!AD53,AA105:AD108,4,0)","v":4900}]
[null,"E","E1","Electric\nProportional \nControl",null,null,null," Negative Control, 24V",null,null,null,null,null,null,"●",null,"●",null,"-",null,"-"]
[null,null,"E2",null,null,null,null," Positive Control, 24V",null,null,null,null,null,null,"●",null,"○",null,"-",null,"-"]
[null,null,"E3",null,null,null,null," Negative Control, 12V",null,null,null,null,null,null,"●",null,"●",null,"-",null,"-",null,null,null,null,null,null,"max. dis",null,"min.dis",null,"Nmax.","Nnom","Pmax","Pnom","Qmax","Tmax","Cracking press"]
[null,null,"E4",null,null,null,null," Positive Control, 12V",null,null,null,null,null,null,"●",null,"○",null,"-",null,"-",null,null,null,null,null,85,68,88.5,0,68,6150,3900,45,40,332,541,0.7,1.8]
[null,"P","P1","Hydraulic \nProportional \nControl",null,null,null," Negative Control, Pi = 2.5MPa",null,null,null,null,null,null,"●",null,"●",null,"-",null,"-",null,null,null,null,null,112,90,112,0,90,5600,3550,45,40,398,713,0.7,1.8]
[null,null,"P2",null,null,null,null," Positive Control, Pi = 2.5MPa",null,null,null,null,null,null,"●",null,"○",null,"-",null,"-",null,null,null,null,null,160,128,160,0,128,4900,3100,45,40,496,1019,0.65,0.9]
[null,null,"P3",null,null,null,null," Negative Control, Pi = 1.0MPa",null,null,null,null,null,null,"●",null,"●",null,"-",null,"-",null,null,null,null,null,212,170,215,0,170,4600,2900,50,42,623,1437,0.65,0.9]
[null,null,"P4",null,null,null,null," Positive Control, Pi = 1.0MPa",null,null,null,null,null,null,"●",null,"○",null,"-",null,"-",null,null,null,null,null,null,{"$f":"VLOOKUP(M7VC!$AD$53,AA113:AB116,2,0)","v":128},{"$f":"VLOOKUP(M7VC!$AD$53,AA113:AC116,3,0)","v":160},{"$f":"VLOOKUP(M7VC!$AD$53,AA113:AD116,4,0)","v":0},{"$f":"VLOOKUP(M7VC!$AD$53,AA113:AE116,5,0)","v":128},{"$f":"VLOOKUP(M7VC!$AD$53,AA113:AF116,6,0)","v":4900},{"$f":"VLOOKUP(M7VC!$AD$53,AA113:AG116,7,0)","v":3100},{"$f":"IF(AG91=\"a\",(VLOOKUP(M7VC!$AD$53,AA113:AH116,8,0)),34.3)","v":45},{"$f":"IF(AG91=\"a\",(VLOOKUP(M7VC!$AD$53,AA113:AI116,9,0)),34.3)","v":40},{"$f":"VLOOKUP(M7VC!$AD$53,AA113:AK116,10,0)","v":496},{"$f":"VLOOKUP(M7VC!$AD$53,AA113:AK116,11,0)","v":1019},{"$f":"VLOOKUP(M7VC!$AD$53,AA113:AL116,12,0)","v":0.65},{"$f":"VLOOKUP(M7VC!$AD$53,AA113:AM116,13,0)","v":0.9}]
[null,"H","H1","Pressure \nRelated \nControl",null,null,null," Without Pressure Increase ",null,null,null,null,null,null,"●",null,"-",null,"●",null,"●"]
[null,null,"H2",null,null,null,null," With Pressure Increase",null,null,null,null,null,null,"●",null,"-",null,"●",null,"●"]
[null,null,"H3",null,null,null,null," With Pressure Increase and Hydraulic Remote Control",null,null,null,null,null,null,"●",null,"-",null,"●",null,"●"]
[]
[null,"●　＝　Available",null,null,null,null,"○　＝　Under Development",null,null,null,null,"―　　＝　　Not Available"]

{"sheet":"M7X-spec","index":2,"n_rows":81,"n_cols":41,"rows_kept":81,"cut":false,"hidden":true,"merged":[[16,2,16,3],[19,2,19,3],[28,2,28,3],[73,2,73,3]]}
[]
[null,"M7X Ordering Code"]
[]
[]
[null,null,"Please fill in the Inquiry Form on page ** in order to specify the requirement."]
[]
[null,null,"M7X",null,112,"A","A",2,2,"-","A","X","X","X","X","-","*"]
[null,null,1,null,2,3,4,5,6,null,7,8,9,10,11,null,12,null,null,null,null,null,null,null,null,null,null,null,null,null,null,null,null,null,null,null,null,null,null,{"$f":"IF(M7V!AG1=\"Language : English\",\"General(Other)\",\"一般(その他)\")","v":"General(Other)"}," "]
[null,null,null,null,null,null,null,null,null,null,null,null,null,null,null,null,null,null,null,null,null,null,null,null,null,null,null,null,null,null,null,null,null,null,null,null,null,null,null,{"$f":"IF(M7X!AG1=\"Language : English\",\"Travel(Closed)\",\"走行(クローズド)\")","v":"Travel(Closed)"},{"$f":"IF(M7X!AG1=\"Language : English\",\"For travel (closed) applications, the motor may require flushing valve to prevent high temperature inside the system.\",\"走行(クローズド)用途では、システム内部の高温を防止するために、モータにフラッシングバルブが必要になる場合があります。\")","v":"For travel (closed) applications, the motor may require flushing valve to prevent high temperature inside the system."}]
[null,1,"M7X Series ",null,null,null,null,null,null,null,null,null,null,null,null,null,null,null,null,null,null,null,null,null,null,null,null,null,null,null,null,null,null,null,null,null,null,null,null,{"$f":"IF(M7X!AG1=\"Language : English\",\"Travel(Open)\",\"走行(オープン)\")","v":"Travel(Open)"},{"$f":"IF(M7X!AG1=\"Language : English\",\"For travel (open) applications, the motor may require counterbalance valves (both directions) to prevent cavitation inside the motor during braking.\",\"走行(クローズド)用途では、ブレーキ時のモータ内部のキャビテーションを防止するために、モータにカウンターバランス弁(両方向)が必要になる場合があります。\")","v":"For travel (open) applications, the motor may require counterbalance valves (both directions) to prevent cavitation inside the motor during braking."}]
[null,null,"M7X Series, Fixed Displacement, Axial Piston Motor, Applicable in Both Open and Closed Loops",null,null,null,null,null,null,null,null,null,null,null,null,null,null,null,null,null,null,null,null,null,null,null,null,null,null,null,null,null,null,null,null,null,null,null,null,{"$f":"IF(M7X!AG1=\"Language : English\",\"Hoist\",\"巻上\")","v":"Hoist"},{"$f":"IF(M7X!AG1=\"Language : English\",\"For hoist applications, the motor may require counterbalance valves (one directions) to prevent cavitation inside the motor during braking.\",\"巻上用途では、ブレーキ時に発生するモータ内部のキャビテーションを防止するために、カウンターバランス弁(片方向)が必要になる場合があります。\")","v":"For hoist applications, the motor may require counterbalance valves (one directions) to prevent cavitation inside the motor during braking."}]
[null,null,null,null,null,null,null,null,null,null,null,null,null,null,null,null,null,null,null,null,85,"●",{"$f":"VLOOKUP(M7X!AD65,U12:V14,2,0)","v":"●"},null,null,null,null,null,null,null,null,null,null,null,null,null,null,null,null,{"$f":"IF(M7X!AG1=\"Language : English\",\"Swing\",\"旋回\")","v":"Swing"},{"$f":"IF(M7X!AG1=\"Language : English\",\"For swing applications, the motor may require counterbalance valves (for swing) to prevent cavitation inside the motor during braking.\",\"旋回用途では、ブレーキ時に発生するモータ内部のキャビテーションを防止するために、カウンターバランス弁(旋回用)が必要になる場合があります。\")","v":"For swing applications, the motor may require counterbalance valves (for swing) to prevent cavitation inside the motor during braking."}]
[null,2,"Size",null,null,null,null,null,null,null,null,null,null,null,85,112,160,null,null,null,112,"●"]
[null,null,"Standard Size　",null,null,null,null,null,null,null,null,null,null,null,"●","●","●",null,null,null,160,"●"]
[]
[null,3,"Series Specifications"]
[null,null,"A",null,"Standard"]
[]
[null,4,"Mounting Flange and Port Position"]
[null,null,null,null,"Mounting",null,null,null,null,"Port position",null,null,null,null,85,112,160]
[null,null,"A",null,"SAE J744, 4-bolt Mount",null,null,null,null,"Rear",null,null,null,null,"●","●","●",null,null,null,"A",{"$f":"HLOOKUP(M7X!$AD$65,'M7X-spec'!$O$20:$Q$26,2,0)","v":"●"},{"$f":"VLOOKUP(M7X!AD69,U21:V24,2,0)","v":"●"},null,{"$f":"M7X!AD69&M7X!AD74&M7X!AD77","v":"A12"},{"$f":"VLOOKUP(Y21,Com!K1:L216,2,0)","v":"○"}]
[null,null,"B",null,"SAE J744, 4-bolt Mount",null,null,null,null,"Side",null,null,null,null,"●","●","●",null,null,null,"B",{"$f":"HLOOKUP(M7X!$AD$65,'M7X-spec'!$O$20:$Q$26,3,0)","v":"●"}]
[null,null,"C",null,"ISO 3019-2, 4-bolt Mount　",null,null,null,null,"Rear",null,null,null,null,"●","●","●",null,null,null,"C",{"$f":"HLOOKUP(M7X!$AD$65,'M7X-spec'!$O$20:$Q$26,4,0)","v":"●"}]
[null,null,"D",null,"ISO 3019-2, 4-bolt Mount　",null,null,null,null,"Side",null,null,null,null,"●","●","●",null,null,null,"D",{"$f":"HLOOKUP(M7X!$AD$65,'M7X-spec'!$O$20:$Q$26,5,0)","v":"●"}]
[null,null,"G",null,"SAE J744, 4-bolt Mount",null,null,null,null,"Upper Side",null,null,null,null,"○","○","○"]
[null,null,"H",null,"ISO 3019-2, 4-bolt Mount　",null,null,null,null,"Upper Side",null,null,null,null,"○","○","○"]
[]
[null,5,"Port and Flange Fixing Thread "]
[null,null,null,null,"Threaded Port Type",null,null,null,null,"Flange Fixing Thread Type",null,null,null,null,85,112,160]
[null,null,1,null," ANSI ISO 11926",null,null,null,null," ANSI ASMEB1.1",null,null,null,null,"●","●","●",null,null,null,1,{"$f":"HLOOKUP(M7X!$AD$65,'M7X-spec'!$O$29:$Q$33,2,0)","v":"●"},{"$f":"VLOOKUP(M7X!AD74,U30:V31,2,0)","v":"●"}]
[null,null,2,null," ANSI ISO 11926",null,null,null,null," Metric ISO724",null,null,null,null,"○","○","○",null,null,null,4,{"$f":"HLOOKUP(M7X!$AD$65,'M7X-spec'!$O$29:$Q$33,5,0)","v":"●"}]
[null,null,3,null," Metric ISO6149",null,null,null,null," Metric ISO724",null,null,null,null,"○","○","○"]
[null,null,4,null," Parallel Piping ISO228",null,null,null,null," Metric ISO724",null,null,null,null,"●","●","●"]
[]
[null,6,"Shaft End "]
[null,null,null,null,"Standard",null,null,null,null,"Specification",null,null,null,null,85,112,160]
[null,null,1,null," ANSI B92.1",null,null,null,null," 1 1/2 in 17T 12/24DP",null,null,null,null,"-","-","-",null,null,null,2,{"$f":"HLOOKUP(M7X!$AD$65,'M7X-spec'!$O$36:$Q$45,3,0)","v":"●"},{"$f":"VLOOKUP(M7X!AD77,U37:V43,2,0)","v":"●"}]
[null,null,2,null," ANSI B92.1",null,null,null,null," 1 3/4 in 13T 8/16DP",null,null,null,null,"-","●","●",null,null,null,4,{"$f":"HLOOKUP(M7X!$AD$65,'M7X-spec'!$O$36:$Q$45,5,0)","v":"-"}]
[null,null,3,null," ANSI B92.1",null,null,null,null," 2 in 15T 8/16DP",null,null,null,null,"-","-","-",null,null,null,5,{"$f":"HLOOKUP(M7X!$AD$65,'M7X-spec'!$O$36:$Q$45,6,0)","v":"-"}]
[null,null,4,null," ANSI B92.1",null,null,null,null," 1 3/8 in 21T 16/32DP",null,null,null,null,"●","-","-",null,null,null,6,{"$f":"HLOOKUP(M7X!$AD$65,'M7X-spec'!$O$36:$Q$45,7,0)","v":"-"}]
[null,null,5,null," DIN5480",null,null,null,null," W35×2×16×9 g",null,null,null,null,"○","-","-",null,null,null,7,{"$f":"HLOOKUP(M7X!$AD$65,'M7X-spec'!$O$36:$Q$45,8,0)","v":"●"}]
[null,null,6,null," DIN5480",null,null,null,null," W40×2×18×9 g",null,null,null,null,"●","●","-",null,null,null,8,{"$f":"HLOOKUP(M7X!$AD$65,'M7X-spec'!$O$36:$Q$45,9,0)","v":"●"}]
[null,null,7,null," DIN5480",null,null,null,null," W45×2×21×9 g",null,null,null,null,"-","●","●",null,null,null,9,{"$f":"HLOOKUP(M7X!$AD$65,'M7X-spec'!$O$36:$Q$45,10,0)","v":"-"}]
[null,null,8,null," DIN5480",null,null,null,null," W50×2×24×9 g",null,null,null,null,"-","○","●"]
[null,null,9,null," ANSI B92.1",null,null,null,null," 1 1/4 in 14T 12/24DP",null,null,null,null,"●","-","-"]
[null,null,null,null,null,null,null,null,null,null,null,null,null,null,null,null,null,null,null,null,"QMAX"]
[null,7,"Displacement　Setting　(cm3)",null,null,null,null,null,null,null,null,null,null,null,85,112,160,null,null,null,null,85,112,160]
[null,null,"A",null,90,112,null,null,null,null,null,null,null,null,"●","●","●",null,null,null,"A",90,112,160,null,{"$f":"HLOOKUP(M7X!$AD$65,$V$47:$Y$52,2,0)","v":160}]
[null,null,"B",null,80,null,null,null,null,null,null,null,null,null,"●","-","-",null,null,null,"B",80,"-","-",null,{"$f":"HLOOKUP(M7X!$AD$65,$V$47:$Y$52,3,0)","v":"-"}]
[null,null,"C",null,75,null,null,null,null,null,null,null,null,null,"○","-","-",null,null,null,"C",75,"-","-",null,{"$f":"HLOOKUP(M7X!$AD$65,$V$47:$Y$52,4,0)","v":"-"}]
[null,null,"D",null,85,null,null,null,null,null,null,null,null,null,"●","-","-",null,null,null,"D",85,"-","-",null,{"$f":"HLOOKUP(M7X!$AD$65,$V$47:$Y$52,5,0)","v":"-"}]
[null,null,null,null,null,null,null,null,null,null,null,null,null,null,null,null,null,null,null,null,null,null,null,null,null,{"$f":"VLOOKUP(M7X!AD84,U48:Z51,6,0)","v":160}]
[null,8,"Optional Valve",null,null,null,null,null,null,null,null,null,null,null,85,112,160]
[null,null,"Blank",null," Without Any Optional Valve",null,null,null,null,null,null,null,null,null,"●","●","●",null,null,null,"Blank",{"$f":"HLOOKUP(M7X!$AD$65,'M7X-spec'!$O$53:$Q$61,2,0)","v":"●"},{"$f":"VLOOKUP(M7X!AD85,U54:V61,2,0)","v":"●"},"Blank","a",{"$f":"VLOOKUP(M7X!AD85,X54:Y61,2,0)","v":"a"},"aa","〇",{"$f":"VLOOKUP(AD54,AA54:AB59,2,0)","v":"〇"},{"$f":"Z54&Z64","v":"aa"}]
[null,null,"X",null," With Counterbalance Valve",null,null,"Hoist : CW rotation (port A inlet)",null,null,null,"viewed from the shaft end",null,null,"○","○","○",null,null,null,"X",{"$f":"HLOOKUP(M7X!$AD$65,'M7X-spec'!$O$53:$Q$61,3,0)","v":"○"},null,"X","b",null,"ac","×"]
[null,null,"Y",null," With Counterbalance Valve",null,null,"Hoist : CCW rotation (port B inlet)",null,null,null,"viewed from the shaft end",null,null,"○","○","○",null,null,null,"Y",{"$f":"HLOOKUP(M7X!$AD$65,'M7X-spec'!$O$53:$Q$61,4,0)","v":"○"},null,"Y","b",null,"ba","〇"]
[null,null,"Z",null," Without Counterbalance Valve, With Flushing Valve",null,null,null,null,null,null,null,null,null,"○","○","○",null,null,null,"Z",{"$f":"HLOOKUP(M7X!$AD$65,'M7X-spec'!$O$53:$Q$61,5,0)","v":"○"},null,"Z","c",null,"bc","×"]
[null,null,"A",null," With Flushing Valve",null,null,"- φ1.5_3.5L/min",null,null,null,null,null,null,null,null,null,null,null,null,"A",{"$f":"HLOOKUP(M7X!$AD$65,'M7X-spec'!$O$53:$Q$61,6,0)","v":0},null,"A","c",null,"ca","×"]
[null,null,"B",null," With Flushing Valve",null,null,"- φ1.8_5L/min",null,null,null,null,null,null,null,null,null,null,null,null,"B",{"$f":"HLOOKUP(M7X!$AD$65,'M7X-spec'!$O$53:$Q$61,7,0)","v":0},null,"B","c",null,"cc","〇"]
[null,null,"C",null," With Flushing Valve",null,null,"- φ2.3_8L/min",null,null,null,null,null,null,null,null,null,null,null,null,"C",{"$f":"HLOOKUP(M7X!$AD$65,'M7X-spec'!$O$53:$Q$61,8,0)","v":0},null,"C","c"]
[null,null,"D",null," With Flushing Valve",null,null,"- φ2.8_13L/min",null,null,null,null,null,null,null,null,null,null,null,null,"D",{"$f":"HLOOKUP(M7X!$AD$65,'M7X-spec'!$O$53:$Q$61,9,0)","v":0},null,"D","c"]
[]
[null,9,"Port Option for Flushing Valve Assembly",null,null,null,null,null,null,null,null,null,null,null,85,112,160]
[null,null,"Blank",null," Without Flushing Valve",null,null,null,null,null,null,null,null,null,"●","●","●",null,null,null,"Blank",{"$f":"HLOOKUP(M7X!$AD$65,'M7X-spec'!$O$63:$Q$66,2,0)","v":"●"},{"$f":"VLOOKUP(M7X!AD90,U64:V66,2,0)","v":"●"},"Blank","a",{"$f":"VLOOKUP(M7X!AD90,X64:Y66,2,0)","v":"a"}]
[null,null,"A",null," Parallel Piping ISO228",null,null,null,null,null,null,null,null,null,"○","○","○",null,null,null,"A",{"$f":"HLOOKUP(M7X!$AD$65,'M7X-spec'!$O$63:$Q$66,3,0)","v":"○"},null,"A","c"]
[null,null,"B",null," ANSI ISO 11926",null,null,null,null,null,null,null,null,null,"○","○","○",null,null,null,"B",{"$f":"HLOOKUP(M7X!$AD$65,'M7X-spec'!$O$63:$Q$66,4,0)","v":"○"},null,"B","c"]
[]
[null,10,"Speed Sensor",null,null,null,null,null,null,null,null,null,null,null,85,112,160]
[null,null,"Blank",null," Without Speed Sensor",null,null,null,null,null,null,null,null,null,"●","●","●",null,null,null,"Blank",{"$f":"HLOOKUP(M7X!$AD$65,'M7X-spec'!$O$68:$Q$71,2,0)","v":"●"},{"$f":"VLOOKUP(M7X!AD93,U69:V71,2,0)","v":"●"}]
[null,null,1,null," With Speed Sensor (A port side)",null,null,null,null,null,null,null,null,null,"●","●","●",null,null,null,1,{"$f":"HLOOKUP(M7X!$AD$65,'M7X-spec'!$O$68:$Q$71,3,0)","v":"●"}]
[null,null,"B",null," With Speed Sensor (B port side)",null,null,null,null,null,null,null,null,null,"●","●","●",null,null,null,"B",{"$f":"HLOOKUP(M7X!$AD$65,'M7X-spec'!$O$68:$Q$71,4,0)","v":"●"}]
[]
[null,11,"Design Code",null,null,null,null,null,null,null,null,null,null,null,85,112,160]
[null,null,"**",null,"01~",null,null,null,null,null,null,null,null,null,"●","●","●"]
[]
[null,null,"●　＝　Available",null,null,null,null,"○　＝　Under Development"]
[null,null,null,null,null,null,null,null,null,null,null,null,null,null,null,null,null,null,null,null,null,"Nmax.","Pmax","Pnom","Qmax","Tmax","Cracking press"]
[null,null,null,null,null,null,null,null,null,null,null,null,null,null,null,null,null,null,null,null,85,4500,45,40,405,573,0.7,1.8]
[null,null,null,null,null,null,null,null,null,null,null,null,null,null,null,null,null,null,null,null,112,4000,45,40,398,713,0.7,1.8]
[null,null,null,null,null,null,null,null,null,null,null,null,null,null,null,null,null,null,null,null,160,3600,45,40,496,1019,0.65,0.9]
[null,null,null,null,null,null,null,null,null,null,null,null,null,null,null,null,null,null,null,null,null,{"$f":"VLOOKUP(M7X!$AD$65,U78:V80,2,0)","v":3600},{"$f":"IF(Z54=\"b\",34.3,(VLOOKUP(M7X!$AD$65,U78:W80,3,0)))","v":45},{"$f":"IF(Z54=\"b\",34.3,(VLOOKUP(M7X!$AD$65,U78:X80,4,0)))","v":40},{"$f":"VLOOKUP(M7X!$AD$65,U78:Y80,5,0)","v":496},{"$f":"VLOOKUP(M7X!$AD$65,U78:Z80,6,0)","v":1019},{"$f":"VLOOKUP(M7X!$AD$65,U78:AA80,7,0)","v":0.65},{"$f":"VLOOKUP(M7X!$AD$65,U78:AB80,8,0)","v":0.9}]

{"sheet":"M7V","index":3,"n_rows":97,"n_cols":36,"rows_kept":97,"cut":false,"hidden":false,"merged":[[88,17,88,26],[89,7,89,11],[90,7,90,11],[91,7,91,11],[91,12,91,16],[90,12,90,16],[89,12,89,16],[89,17,89,26],[90,17,90,26],[91,17,91,26],[0,32,0,33],[38,7,38,28],[11,21,11,22],[20,29,20,30],[21,29,21,30],[22,29,22,35],[19,33,19,35],[38,29,38,30],[43,29,43,30],[38,31,38,35],[8,21,8,28],[5,17,5,20],[42,27,42,28],[5,21,5,24],[5,25,5,28],[0,17,0,28],[53,31,55,35],[65,31,65,35],[66,31,66,35],[46,8,46,17],[45,18,46,26],[45,7,46,7],[48,8,48,17],[47,7,48,7],[47,18,48,26],[45,27,46,28],[47,27,48,28],[44,29,52,30],[56,29,64,30],[60,7,60,26],[61,7,61,26],[62,7,62,26],[63,7,63,26],[64,7,64,26],[66,27,66,28],[64,27,64,28],[63,27,63,28],[58,7,58,26],[59,7,59,26],[65,27,65,28],[67,31,69,35],[65,29,65,30],[66,29,66,30],[90,31,91,35],[88,31,89,35],[67,29,69,30],[2,1,2,6],[5,1,6,14],[7,1,8,14],[63,31,64,35],[56,31,62,35],[86,31,87,35],[70,31,85,35],[2,32,2,35],[5,32,5,35],[8,32,8,35],[15,7,15,17],[15,18,15,28],[2,29,2,31],[5,29,5,31],[8,29,8,31],[2,17,2,20],[8,17,8,20],[2,21,2,28],[67,27,67,28],[68,27,68,28],[69,27,69,28],[86,7,86,26],[87,7,87,26],[81,13,81,26],[82,13,82,26],[83,13,83,26],[84,7,84,26],[93,31,94,35],[92,31,92,35],[74,27,74,28],[75,27,75,28],[81,27,81,28],[82,27,82,28],[94,27,94,28],[77,13,77,26],[78,13,78,26],[79,13,79,26],[84,29,87,30],[88,29,91,30],[92,29,94,30],[92,7,92,26],[70,29,83,30],[76,13,76,26],[90,27,90,28],[85,7,85,26],[80,13,80,26],[89,27,89,28],[81,8,83,12],[77,8,80,12],[88,12,88,16],[88,7,88,11],[56,5,64,6],[53,5,55,6],[44,5,52,6],[43,5,43,6],[39,5,42,6],[52,27,52,28],[51,27,51,28],[43,27,43,28],[62,27,62,28],[61,27,61,28],[49,27,49,28],[50,27,50,28],[56,7,56,26],[57,7,57,26],[57,27,57,28],[55,27,55,28],[54,18,54,26],[55,18,55,26],[95,29,95,30],[96,29,96,30],[14,7,14,28],[17,18,17,28],[18,18,18,28],[18,7,18,17],[19,18,19,28],[20,7,20,17],[20,18,20,28],[17,7,17,17],[83,27,83,28],[87,27,87,28],[84,27,84,28],[76,27,76,28],[77,27,77,28],[78,27,78,28],[79,27,79,28],[80,27,80,28],[59,27,59,28],[58,27,58,28],[56,27,56,28],[40,27,40,28],[41,27,41,28],[95,27,95,28],[22,5,22,6],[21,7,21,28],[22,7,22,28],[16,18,16,21],[16,22,16,28],[11,11,11,12],[11,13,11,14],[11,19,11,20],[16,7,16,10],[18,5,18,6],[17,5,17,6],[16,5,16,6],[15,5,15,6],[14,5,14,6],[16,11,16,17],[11,23,11,24],[11,27,11,28],[12,27,12,28],[11,15,11,16],[12,15,12,16],[21,5,21,6],[20,5,20,6],[19,5,19,6],[11,3,11,4],[12,3,12,4],[11,17,11,18],[27,34,27,35],[28,34,28,35],[12,5,12,6],[12,7,12,8],[12,9,12,10],[12,11,12,12],[12,13,12,14],[12,17,12,18],[12,19,12,20],[11,5,11,6],[11,7,11,8],[12,29,12,30],[11,29,11,30],[11,25,11,26],[12,25,12,26],[14,29,14,35],[15,29,15,30],[16,29,16,30],[17,29,17,30],[18,29,18,30],[19,29,19,30],[95,31,95,35],[96,31,96,35],[39,31,42,35],[50,8,50,17],[51,8,51,17],[52,8,52,17],[54,7,54,17],[55,7,55,17],[11,9,11,10],[44,31,52,35],[43,31,43,35],[60,27,60,28],[70,27,70,28],[71,27,71,28],[70,8,71,12],[70,7,71,7],[73,7,76,7],[72,27,72,28],[73,27,73,28],[72,8,72,12],[73,8,76,12],[44,7,44,17],[49,18,49,26],[39,29,42,30],[92,1,94,4],[95,1,95,4],[96,1,96,4],[14,1,14,4],[15,1,15,4],[38,1,38,4],[39,1,42,4],[43,1,43,4],[44,1,52,4],[53,1,55,4],[56,1,64,4],[65,1,65,4],[66,1,66,4],[22,1,22,4],[16,1,16,4],[17,1,17,4],[18,1,18,4],[19,1,19,4],[20,1,20,4],[21,1,21,4],[88,1,91,4],[32,1,36,19],[96,7,96,26],[84,1,87,4],[96,5,96,6],[95,5,95,6],[92,5,94,6],[88,5,91,6],[84,5,87,6],[70,5,83,6],[67,5,69,6],[66,5,66,6],[65,5,65,6],[96,27,96,28],[92,27,92,28],[85,27,85,28],[86,27,86,28],[93,7,93,26],[94,7,94,26],[93,27,93,28],[12,21,12,22],[67,7,67,26],[68,7,68,26],[69,7,69,26],[70,13,70,26],[39,7,39,26],[40,7,40,26],[41,7,41,26],[42,7,42,26],[43,7,43,26],[12,23,12,24],[95,7,95,26],[53,7,53,17],[53,18,53,28],[19,7,19,17],[54,27,54,28],[91,27,91,28],[67,1,69,4],[70,1,83,4],[11,1,12,1],[81,7,83,7],[77,7,80,7],[71,13,71,26],[72,13,72,26],[73,13,73,26],[74,13,74,26],[75,13,75,26],[31,20,31,35],[32,20,36,35],[23,33,23,34],[23,1,23,4],[24,1,24,4],[24,29,24,35],[24,7,24,28],[23,7,23,17],[23,18,23,28],[23,29,23,32],[29,29,29,35],[31,1,31,19],[53,29,55,30],[39,27,39,28],[24,5,24,6],[23,5,23,6],[26,5,26,6],[25,5,25,6],[38,5,38,6],[50,18,50,26],[51,18,51,26],[52,18,52,26],[44,18,44,28],[45,8,45,17],[47,8,47,17],[49,8,49,17],[29,1,29,4],[29,5,29,6],[29,7,29,28],[25,29,25,35],[26,29,26,35],[27,29,27,30],[28,29,28,30],[28,7,28,28],[25,7,25,28],[26,7,26,28],[27,7,27,28],[25,1,25,4],[26,1,26,4],[27,1,27,4],[28,1,28,4],[28,5,28,6],[27,5,27,6]]}
[null,null,null,null,null,null,null,null,null,null,null,null,null,null,null,null,null,{"$f":"VLOOKUP(M7V!V6,'M7V-spec'!AN8:AO12,2,0)","v":" "},null,null,null,null,null,null,null,null,null,null,null,null,null,null,"Language : English",null,null,"Rev: 4"]
[]
[null,"M7V series Inquiry Form",null,null,null,null,null,null,null,null,null,null,null,null,null,null,null,"Fill-in Date ：",null,null,null,null,null,null,null,null,null,null,null,"Author ："]
[]
[]
[null,"Please select an item from a drop down list in a cell with thick red borders. Options with ★ are under development. If it is chosen, the cell's color changes to yellow.",null,null,null,null,null,null,null,null,null,null,null,null,null,null,null,"Application ：",null,null,null,"General(Other)",null,null,null,null,null,null,null,"Machine Model ："]
[]
[null,"If the cell's color is red, the request is out of Kawasaki standard specification range. Even if the request is out of Kawasaki specification range, please describe the detail on the note and consult with Kawasaki."]
[null,null,null,null,null,null,null,null,null,null,null,null,null,null,null,null,null,"Customer ：",null,null,null,null,null,null,null,null,null,null,null,"Motor Model ：",null,null,{"$f":"C13&D13&F13&H13&J13&L13&N13&P13&R13&T13&V13&X13&Z13&AB13&AD13&AF13&AG13","v":"M7V85AA11-AA1T1XXXN-**"}]
[]
[null,"Variable Displacement Motor"]
[null,"Model Code",1,2,null,3,null,4,null,5,null,6,null,null,null,7,null,8,null,9,null,10,null,11,null,12,null,13,null,14,null,null,15]
[null,null,"M7V",{"$f":"IF(AD40<>\"\",AD40,\"\")","v":85},null,"A",null,{"$f":"IF(AD45<>\"\",AD45,\"\")","v":"A"},null,{"$f":"IF(AD54<>\"\",AD54,\"\")","v":1},null,{"$f":"IF(AD57<>\"\",AD57,\"\")","v":1},null,"-",null,{"$f":"IF(AD66<>\"\",AD66,\"\")","v":"A"},null,{"$f":"IF(AD67<>\"\",AD67,\"\")","v":"A"},null,{"$f":"IF(AD68<>\"\",AD68,\"\")","v":1},null,{"$f":"IF(AD71<>\"\",AD71,\"\")","v":"T1"},null,{"$f":"IF(AD85<>\"\",AD85,\"\")","v":"X"},null,{"$f":"IF(AD89<>\"\",AD89,\"\")","v":"X"},null,{"$f":"IF(AD93<>\"\",AD93,\"\")","v":"X"},null,"N",null,"-",{"$f":"IF(AD97<>\"\",AD97,\"\")","v":"**"}]
[]
[null,"Items",null,null,null,"Symbol",null,"Kawasaki Standard Specification",null,null,null,null,null,null,null,null,null,null,null,null,null,null,null,null,null,null,null,null,null,"Customer Specification"]
[null,"Max. / Min. Displacement",null,null,null,"qmax/qmin",null,{"$f":"IF(AG1=\"Language : English\",IF(AD66=\"V\",\"Max. Displacement: \"&'M7V-spec'!AC117&\" \"&\"-\"&\" \"&TEXT('M7V-spec'!AB117,\"0\")&\" \"&\"cm3\" & CHAR(10) &\"(In case Code V is selected in the section 7)\",\"Max. Displacement: \"&TEXT('M7V-spec'!AF52,\"0\")&\" \"&\"cm3\"),IF(AD66=\"V\",\"最大押しのけ容量: \"&'M7V-spec'!AC117&\" \"&\"-\"&\" \"&TEXT('M7V-spec'!AB117,\"0\")&\" \"&\"cm3\" & CHAR(10) &\"(セクション7でコードVが選ばれた場合)\",\"最大押しのけ容量: \"&TEXT('M7V-spec'!AF52,\"0\")&\" \"&\"cm3\"))","v":"Max. Displacement: 85 cm3"},null,null,null,null,null,null,null,null,null,null,{"$f":"IF(AG1=\"Language : English\",IF(AD67=\"V\",\"Min. Displacement: \"&TEXT('M7V-spec'!AE117,\"0\")&\" \"&\"-\"&\" \"&TEXT('M7V-spec'!AD117,\"0\")&\" \"&\"cm3\" & CHAR(10) &\"(In case Code V is selected in the section 8)\",\"Min. Displacement: \"&TEXT('M7V-spec'!AM53,\"0\")&\" \"&\"cm3\"),IF(AD67=\"V\",\"最小押しのけ容量: \"&TEXT('M7V-spec'!AE117,\"0\")&\" \"&\"-\"&\" \"&TEXT('M7V-spec'!AD117,\"0\")&\" \"&\"cm3\" & CHAR(10) &\"(セクション8でコードVが選ばれた場合)\",\"最小押しのけ容量: \"&TEXT('M7V-spec'!AM53,\"0\")&\" \"&\"cm3\"))","v":"Min. Displacement: 51 cm3"},null,null,null,null,null,null,null,null,null,null,"qmax:",null,null,"cm3","qmin:",null,"cm3"]
[null,"Max. Speed @ qmax / qmin",null,null,null,"Nnom/Nmax",null,"Max. Speed@qmax:",null,null,null,{"$f":"IF(AG1=\"Language : English\",\"Up to \"&TEXT('M7V-spec'!AB109,\"0\")&\" \"&\"min-1\",\"\"&TEXT('M7V-spec'!AB109,\"0\")&\" \"&\"min-1まで\")","v":"Up to 6150 min-1"},null,null,null,null,null,null,"Max. Speed@qmin:",null,null,null,{"$f":"IF(AG1=\"Language : English\",\"Up to \"&TEXT('M7V-spec'!AD109,\"0\")&\" \"&\"min-1\",\"\"&TEXT('M7V-spec'!AD109,\"0\")&\" \"&\"min-1まで\")","v":"Up to 6150 min-1"},null,null,null,null,null,null,"Nnom@qmax:",null,null,"min-1","Nmax@qmin:",null,"min-1"]
[null,"Max. / Nominal Pressure",null,null,null,"Pmax/Pnom",null,{"$f":"IF(AG1=\"Language : English\",\"Max. Pressure: Up to \"&'M7V-spec'!AH117&\"MPa\",\"最高圧力: \"&'M7V-spec'!AH117&\"MPaまで\")","v":"Max. Pressure: Up to 45MPa"},null,null,null,null,null,null,null,null,null,null,{"$f":"IF(AG1=\"Language : English\",\"Nominal Pressure: Up to \"&'M7V-spec'!AI117&\" \"&\"MPa\",\"定格圧力: \"&'M7V-spec'!AI117&\" \"&\"Mpaまで\")","v":"Nominal Pressure: Up to 40 MPa"},null,null,null,null,null,null,null,null,null,null,"Pmax:",null,null,"MPa","Pnom:",null,"MPa"]
[null,"Case Drain Pressure",null,null,null,"---",null,"Continuous: Up to 0.2 MPa",null,null,null,null,null,null,null,null,null,null,"Peak: Up to 0.6 MPa",null,null,null,null,null,null,null,null,null,null,"Continuous:",null,null,"MPa","Peak:",null,"MPa"]
[null,"CBV - Set Pressure of Relief Valve / Break Release Port",null,null,null,"---",null,"Set Pressure of Relief Valve (STD): 34.3MPa",null,null,null,null,null,null,null,null,null,null,"Break Release Port: w/o Shuttle Valve or w/ Shuttle Valve or w/ Hydraulic Reducing Relief Valve",null,null,null,null,null,null,null,null,null,null,"Relief:",null,34.299999999999997,"MPa"]
[null,"CBV - Cracking Pressure of Spool / Check Valve",null,null,null,"---",null,{"$f":"IF(AG1=\"Language : English\",\"Cracking Pressure of Spool (STD): \"&TEXT('M7V-spec'!AL117,\"0.00\")&\"MPa\"&\" \"&\"or\"&\" \"&TEXT('M7V-spec'!AM117,\"0.00\")&\"MPa\",\"スプールのクラッキング圧力 (標準): \"&TEXT('M7V-spec'!AL117,\"0.00\")&\"MPa\"&\" \"&\"または\"&\" \"&TEXT('M7V-spec'!AM117,\"0.00\")&\"MPa\")","v":"Cracking Pressure of Spool (STD): 0.70MPa or 1.80MPa"},null,null,null,null,null,null,null,null,null,null,"Cracking Pressure of Check Valve (STD): 0.03MPa",null,null,null,null,null,null,null,null,null,null,"Spool:",null,null,"MPa","Check Valve:",0.03,"MPa"]
[null,"Oil Temperature Range (Inlet)",null,null,null,"---",null,"-20 to 95 ℃ (Drain temperature: up to Max. 115℃ momentarily)",null,null,null,null,null,null,null,null,null,null,null,null,null,null,null,null,null,null,null,null,null,"Operating:",null,null,"℃","Intermittent:",null,"℃"]
[null,"Mounting Direction",null,null,null,"---",null,"Vertical or Horizontal"]
[null,"Oil Type / Oil Viscosity Range",null,null,null,"---",null,"Equivalent to ISO VG46",null,null,null,null,null,null,null,null,null,null,"10 to 1,000 mm2/s(cSt)",null,null,null,null,null,null,null,null,null,null,null,null,null,null,null,null,"mm2/s(cSt)"]
[null,"Name Plate",null,null,null,"---",null,"KHI Standard (Supplier Name, Model Code and S/N)"]
[null,"Paint",null,null,null,"---",null,"KHI Standard (Act Primer Red Brown)"]
[null,"Customer Part Number",null,null,null,"---"]
[null,"Proto Type Requirement",null,null,null,"---",null,null,null,null,null,null,null,null,null,null,null,null,null,null,null,null,null,null,null,null,null,null,null,"Qty's:",null,null,"pcs","Due date:"]
[null,"Production Schedule",null,null,null,"---",null,null,null,null,null,null,null,null,null,null,null,null,null,null,null,null,null,null,null,null,null,null,null,"Qty's:",null,null,"pcs/years","Start date:"]
[null,"Original Motor Model (Competitor)",null,null,null,"---",null,"If the model of original motor can be found, please write down for a reference"]
[]
[null,"Comments (Other requirements)",null,null,null,null,null,null,null,null,null,null,null,null,null,null,null,null,null,null,"Operating condition, Duty cycle etc. (Describe your detail)"]
[]
[]
[]
[]
[]
[]
[null,"Items",null,null,null,"No.",null,"Kawasaki Standard Specification",null,null,null,null,null,null,null,null,null,null,null,null,null,null,null,null,null,null,null,null,null,"Code",null,"Note"]
[null,"Motor Size",null,null,null,2,null," 85",null,null,null,null,null,null,null,null,null,null,null,null,null,null,null,null,null,null,null,null,null,85]
[null,null,null,null,null,null,null," 112"]
[null,null,null,null,null,null,null," 160"]
[null,null,null,null,null,null,null," 212"]
[null,"Series Specifications",null,null,null,3,null," A : Standard",null,null,null,null,null,null,null,null,null,null,null,null,null,null,null,null,null,null,null,null,null,"A"]
[null,"Mounting Flange and Port Position",null,null,null,4,null,"Mounting",null,null,null,null,null,null,null,null,null,null,"Port Position",null,null,null,null,null,null,null,null,null,null,"A"]
[null,null,null,null,null,null,null," A : ","SAE J744, 2-bolt Mount (for M7V85)",null,null,null,null,null,null,null,null,null," Rear",null,null,null,null,null,null,null,null,{"$f":"IF('M7V-spec'!AB20=\"○\",\"★\",\"\")","v":""}]
[null,null,null,null,null,null,null,null,"SAE J744, 4-bolt Mount (for M7V112/160/212)"]
[null,null,null,null,null,null,null," B : ","SAE J744, 2-bolt Mount (for M7V85)",null,null,null,null,null,null,null,null,null," Side",null,null,null,null,null,null,null,null,{"$f":"IF('M7V-spec'!AB21=\"○\",\"★\",\"\")","v":""}]
[null,null,null,null,null,null,null,null,"SAE J744, 4-bolt Mount (for M7V112/160/212)"]
[null,null,null,null,null,null,null," C : ","ISO 3019-2, 4-bolt Mount",null,null,null,null,null,null,null,null,null," Rear",null,null,null,null,null,null,null,null,{"$f":"IF('M7V-spec'!AB22=\"○\",\"★\",\"\")","v":""}]
[null,null,null,null,null,null,null," D : ","ISO 3019-2, 4-bolt Mount",null,null,null,null,null,null,null,null,null," Side",null,null,null,null,null,null,null,null,{"$f":"IF('M7V-spec'!AB23=\"○\",\"★\",\"\")","v":""}]
[null,null,null,null,null,null,null," E : ","SAE J744, 4-bolt Mount (for M7V85)",null,null,null,null,null,null,null,null,null," Rear",null,null,null,null,null,null,null,null,{"$f":"IF('M7V-spec'!AB24=\"○\",\"★\",\"\")","v":""}]
[null,null,null,null,null,null,null," F :","SAE J744, 4-bolt Mount (for M7V85)",null,null,null,null,null,null,null,null,null," Side",null,null,null,null,null,null,null,null,{"$f":"IF('M7V-spec'!AB25=\"○\",\"★\",\"\")","v":""}]
[null,"Port and Flange Fixing Thread",null,null,null,5,null,"Type of Threaded Port",null,null,null,null,null,null,null,null,null,null,"Thread Type for Flange Port",null,null,null,null,null,null,null,null,null,null,1]
[null,null,null,null,null,null,null," 1 : ANSI ISO11926",null,null,null,null,null,null,null,null,null,null," ANSI ASMEB1.1",null,null,null,null,null,null,null,null,{"$f":"IF('M7V-spec'!AB29=\"○\",\"★\",\"\")","v":""}]
[null,null,null,null,null,null,null," 4 : Parallel Piping ISO228",null,null,null,null,null,null,null,null,null,null," Metric ISO724",null,null,null,null,null,null,null,null,{"$f":"IF('M7V-spec'!AB30=\"○\",\"★\",\"\")","v":""}]
[null,"Shaft End",null,null,null,6,null," 1 : ANSI B92.1, 1 1/2 in 17T 12/24DP (for M7V85)",null,null,null,null,null,null,null,null,null,null,null,null,null,null,null,null,null,null,null,{"$f":"IF('M7V-spec'!AB36=\"○\",\"★\",\"\")","v":""},null,1]
[null,null,null,null,null,null,null," 2 : ANSI B92.1, 1 3/4 in 13T 8/16DP (for M7V112/160)",null,null,null,null,null,null,null,null,null,null,null,null,null,null,null,null,null,null,null,{"$f":"IF('M7V-spec'!AB37=\"○\",\"★\",\"\")","v":""}]
[null,null,null,null,null,null,null," 3 : ANSI B92.1, 2 in 15T 8/16DP (for M7V160/212)",null,null,null,null,null,null,null,null,null,null,null,null,null,null,null,null,null,null,null,{"$f":"IF('M7V-spec'!AB38=\"○\",\"★\",\"\")","v":""}]
[null,null,null,null,null,null,null," 4 : ANSI B92.1, 1 3/8 in 21T 16/32DP (for M7V85)",null,null,null,null,null,null,null,null,null,null,null,null,null,null,null,null,null,null,null,{"$f":"IF('M7V-spec'!AB39=\"○\",\"★\",\"\")","v":""}]
[null,null,null,null,null,null,null," 5 : DIN 5480, W35×2×16×9 g (for M7V85)",null,null,null,null,null,null,null,null,null,null,null,null,null,null,null,null,null,null,null,{"$f":"IF('M7V-spec'!AB40=\"○\",\"★\",\"\")","v":""}]
[null,null,null,null,null,null,null," 6 : DIN 5480, W40×2×18×9 g (for M7V85/112)",null,null,null,null,null,null,null,null,null,null,null,null,null,null,null,null,null,null,null,{"$f":"IF('M7V-spec'!AB41=\"○\",\"★\",\"\")","v":""}]
[null,null,null,null,null,null,null," 7 : DIN 5480, W45×2×21×9 g (for M7V112/160)",null,null,null,null,null,null,null,null,null,null,null,null,null,null,null,null,null,null,null,{"$f":"IF('M7V-spec'!AB42=\"○\",\"★\",\"\")","v":""}]
[null,null,null,null,null,null,null," 8 : DIN 5480, W50×2×24×9 g (for M7V160/212)",null,null,null,null,null,null,null,null,null,null,null,null,null,null,null,null,null,null,null,{"$f":"IF('M7V-spec'!AB43=\"○\",\"★\",\"\")","v":""},null,null,null,{"$f":"IF('M7V-spec'!AF20=\"×\",\"Please check the combination availability of the code at [4] [5] [6].\",\"\")","v":""}]
[null,null,null,null,null,null,null," 9 : ANSI B92.1, 1 1/4 in 14T 12/24DP (for M7V85)",null,null,null,null,null,null,null,null,null,null,null,null,null,null,null,null,null,null,null,{"$f":"IF('M7V-spec'!AB44=\"○\",\"★\",\"\")","v":""}]
[null,"Max. Displacement  (cm3)",null,null,null,7,null," A :",{"$f":"'M7V-spec'!AF48","v":85},null,"B :",{"$f":"'M7V-spec'!AF49","v":80},null,"C :",{"$f":"'M7V-spec'!AF50","v":75},null,"D :",{"$f":"'M7V-spec'!AF51","v":70},null,null,null,null,"V :",{"$f":"'M7V-spec'!AC117&\" \"&\"-\"&\" \"&TEXT('M7V-spec'!AB117,\"0\")","v":"88.5 - 68"},null,null,null,null,null,"A"]
[null,"Min. Displacement  (cm3)",null,null,null,8,null," A :",{"$f":"'M7V-spec'!AM48","v":51},null,"B :",{"$f":"'M7V-spec'!AM49","v":40},null,"C :",{"$f":"'M7V-spec'!AM50","v":30},null,"D :",{"$f":"'M7V-spec'!AM51","v":"-"},null,"E :",{"$f":"'M7V-spec'!AM52","v":"-"},null,"V :",{"$f":"TEXT('M7V-spec'!AE117,\"0\")&\" \"&\"-\"&\" \"&TEXT('M7V-spec'!AD117,\"0\")","v":"68 - 0"},null,null,null,null,null,"A"]
[null,"Speed Sensor",null,null,null,9,null," 1 : w/o Speed Sensor",null,null,null,null,null,null,null,null,null,null,null,null,null,null,null,null,null,null,null,null,null,1]
[null,null,null,null,null,null,null," 2 : w/ Speed Sensor (A Port Side)"]
[null,null,null,null,null,null,null," B : w/ Speed Sensor (B Port Side)"]
[null,"Regulator (For all possible combinations of regulators and optional valves see the table for M7V Control Options shown in the catalog.)",null,null,null,10,null,"T"," Two Position Displacement Control",null,null,null,null," T1 : Negative Control, 24V",null,null,null,null,null,null,null,null,null,null,null,null,null,null,null,"T1"]
[null,null,null,null,null,null,null,null,null,null,null,null,null," T2 : Negative Control, 12V"]
[null,null,null,null,null,null,null,"Y"," Hydraulic Two Position Displacement Control",null,null,null,null," Y1 : Negative Control"]
[null,null,null,null,null,null,null,"E"," Electric Proportional Control",null,null,null,null," E1 : Negative Control, 24V"]
[null,null,null,null,null,null,null,null,null,null,null,null,null," E2 : Positive Control, 24V"]
[null,null,null,null,null,null,null,null,null,null,null,null,null," E3 : Negative Control, 12V"]
[null,null,null,null,null,null,null,null,null,null,null,null,null," E4 : Positive Control, 12V"]
[null,null,null,null,null,null,null,"P"," Hydraulic Proportional Control",null,null,null,null," P1 : Negative Control Type, Adjustable Range: Pi = 2.5 MPa"]
[null,null,null,null,null,null,null,null,null,null,null,null,null," P2 : Positive Control Type, Adjustable Range: Pi = 2.5 MPa"]
[null,null,null,null,null,null,null,null,null,null,null,null,null," P3 : Negative Control Type, Adjustable Range: Pi = 1.0 MPa"]
[null,null,null,null,null,null,null,null,null,null,null,null,null," P4 : Positive Control Type, Adjustable Range: Pi = 1.0 MPa"]
[null,null,null,null,null,null,null,"H"," Pressure Related Control",null,null,null,null," H1 : w/o Pressure Increase"]
[null,null,null,null,null,null,null,null,null,null,null,null,null," H2 : w/ Pressure Increase"]
[null,null,null,null,null,null,null,null,null,null,null,null,null," H3 : w/ Pressure Increase and Hydraulic Remote Control"]
[null,"Optional Valve (For all possible combinations of optional valves and regulators see the table for M7V Control Options shown in the catalog.)",null,null,null,11,null," X : w/o Any Optional Valve",null,null,null,null,null,null,null,null,null,null,null,null,null,null,null,null,null,null,null,null,null,"X"]
[null,null,null,null,null,null,null," A1 : w/ Pressure Control Valve (for Regulator Code E,P)"]
[null,null,null,null,null,null,null," B1 : w/ Electric Two-position Control Valve, 24V (for Regulator Code H)",null,null,null,null,null,null,null,null,null,null,null,null,null,null,null,null,null,null,null,null,null,null,null,{"$f":"IF('M7V-spec'!AB64=\"×\",\"Please check the combination availability of code at [10] [11].\",\"\")","v":""}]
[null,null,null,null,null,null,null," B2 : w/ Electric Two-position Control Valve, 12V (for Regulator Code H)"]
[null,"Accessories",null,null,null,12,null,"Flushing Valve",null,null,null,null,"Internal Cooling",null,null,null,null,"Flushing Flow",null,null,null,null,null,null,null,null,null,null,null,"X"]
[null,null,null,null,null,null,null," X : w/o Flushing Valve",null,null,null,null," w/ Internal Cooling",null,null,null,null,"1.8 L/min (M7V85/112), 5.0 L/min (M7V160/212) at ΔP=2.5MPa",null,null,null,null,null,null,null,null,null,{"$f":"IF('M7V-spec'!AB86=\"○\",\"★\",\"\")","v":""}]
[null,null,null,null,null,null,null," 1 : w/o Flushing Valve",null,null,null,null," w/o Internal Cooling",null,null,null,null,"-",null,null,null,null,null,null,null,null,null,{"$f":"IF('M7V-spec'!AB87=\"○\",\"★\",\"\")","v":""},null,null,null,{"$f":"IF('M7V-spec'!AG86=\"b\",\"Please note the coolability inside of the motor is reduced Without Flushing Spool. The allowable max. operating speed is reduced.\",\"\")","v":""}]
[null,null,null,null,null,null,null," 2 : w/ Flushing Valve",null,null,null,null," w/ Internal Cooling",null,null,null,null,"1.8 L/min (M7V85/112), 5.0 L/min (M7V160/212) at ΔP=2.5MPa",null,null,null,null,null,null,null,null,null,{"$f":"IF('M7V-spec'!AB88=\"○\",\"★\",\"\")","v":"★"}]
[null,"Counter Balance Valve",null,null,null,13,null," X : w/o Counter Balance Valve",null,null,null,null,null,null,null,null,null,null,null,null,null,null,null,null,null,null,null,{"$f":"IF('M7V-spec'!AB91=\"○\",\"★\",\"\")","v":""},null,"X"]
[null,null,null,null,null,null,null," 1 : w/ Counter Balance Valve Hoist at CW rotation (A port inlet) viewed from the shaft end",null,null,null,null,null,null,null,null,null,null,null,null,null,null,null,null,null,null,null,{"$f":"IF('M7V-spec'!AB92=\"○\",\"★\",\"\")","v":"★"},null,null,null,{"$f":"IF('M7V-spec'!AG91=\"b\",\"Please note the Max. pressure range is reduced due to CBV's Relief Valve (Up to 34.3MPa).\",\"\")","v":""}]
[null,null,null,null,null,null,null," 2 : w/ Counter Balance Valve Hoist at CCW rotation (B port inlet) viewed from the shaft end",null,null,null,null,null,null,null,null,null,null,null,null,null,null,null,null,null,null,null,{"$f":"IF('M7V-spec'!AB93=\"○\",\"★\",\"\")","v":"★"}]
[null,"Response Speed of Control",null,null,null,14,null," N : Standard",null,null,null,null,null,null,null,null,null,null,null,null,null,null,null,null,null,null,null,null,null,"N"]
[null,"Design Code",null,null,null,15,null," ** : 01　～",null,null,null,null,null,null,null,null,null,null,null,null,null,null,null,null,null,null,null,null,null,"**"]

{"sheet":"M7VC","index":4,"n_rows":97,"n_cols":36,"rows_kept":97,"cut":false,"hidden":false,"merged":[[96,1,96,4],[96,5,96,6],[96,7,96,26],[96,27,96,28],[96,29,96,30],[96,31,96,35],[95,1,95,4],[95,5,95,6],[95,7,95,26],[95,27,95,28],[95,29,95,30],[95,31,95,35],[92,31,92,35],[93,7,93,26],[93,27,93,28],[93,31,94,35],[94,7,94,26],[94,27,94,28],[90,31,91,35],[91,7,91,11],[91,12,91,16],[91,17,91,26],[91,27,91,28],[92,1,94,4],[92,5,94,6],[92,7,92,26],[92,27,92,28],[92,29,94,30],[89,7,89,11],[89,12,89,16],[89,17,89,26],[89,27,89,28],[90,7,90,11],[90,12,90,16],[90,17,90,26],[90,27,90,28],[80,27,80,28],[86,31,87,35],[87,7,87,26],[87,27,87,28],[88,1,91,4],[88,5,91,6],[88,7,88,11],[88,12,88,16],[88,17,88,26],[88,29,91,30],[88,31,89,35],[84,1,87,4],[84,5,87,6],[84,7,84,26],[84,27,84,28],[84,29,87,30],[85,7,85,26],[85,27,85,28],[86,7,86,26],[86,27,86,28],[70,31,85,35],[71,13,71,26],[71,27,71,28],[72,27,72,28],[67,31,69,35],[68,7,68,26],[68,27,68,28],[69,7,69,26],[69,27,69,28],[73,7,76,7],[73,8,76,12],[73,13,73,26],[73,27,73,28],[74,13,74,26],[74,27,74,28],[75,13,75,26],[75,27,75,28],[76,13,76,26],[76,27,76,28],[70,1,83,4],[70,5,83,6],[70,7,71,7],[70,8,71,12],[70,13,70,26],[66,1,66,4],[66,5,66,6],[77,7,80,7],[77,8,80,12],[72,8,72,12],[72,13,72,26],[80,13,80,26],[61,1,64,4],[61,5,64,6],[61,7,61,26],[61,27,61,28],[63,7,63,26],[63,27,63,28],[66,27,66,28],[66,29,66,30],[70,27,70,28],[70,29,83,30],[81,27,81,28],[82,13,82,26],[82,27,82,28],[83,13,83,26],[83,27,83,28],[77,13,77,26],[77,27,77,28],[78,13,78,26],[78,27,78,28],[79,13,79,26],[79,27,79,28],[81,7,83,7],[81,8,83,12],[81,13,81,26],[58,29,60,30],[58,31,60,35],[59,7,59,17],[59,18,59,26],[59,27,59,28],[60,7,60,17],[66,31,66,35],[67,1,69,4],[67,5,69,6],[67,7,67,26],[67,27,67,28],[67,29,69,30],[64,7,64,26],[64,27,64,28],[65,1,65,4],[65,5,65,6],[65,27,65,28],[65,29,65,30],[65,31,65,35],[61,29,64,30],[62,7,62,26],[62,27,62,28],[63,31,64,35],[61,31,62,35],[60,18,60,26],[60,27,60,28],[55,8,55,17],[55,18,55,26],[55,27,55,28],[56,8,56,17],[56,18,56,26],[56,27,56,28],[58,1,60,4],[58,5,60,6],[58,7,58,17],[58,18,58,28],[53,29,53,30],[53,31,53,35],[54,1,57,4],[54,5,57,6],[54,7,54,17],[54,18,54,28],[54,29,57,30],[54,31,57,35],[53,1,53,4],[53,5,53,6],[53,7,53,26],[53,27,53,28],[57,8,57,17],[57,18,57,26],[57,27,57,28],[52,1,52,4],[52,5,52,6],[52,7,52,26],[52,27,52,28],[52,29,52,30],[52,31,52,35],[31,1,31,19],[31,20,31,35],[32,1,49,19],[32,20,49,35],[51,1,51,4],[51,5,51,6],[51,7,51,28],[51,29,51,30],[51,31,51,35],[28,1,28,4],[28,5,28,6],[28,7,28,28],[28,29,28,30],[28,34,28,35],[29,1,29,4],[29,5,29,6],[29,7,29,28],[29,29,29,35],[26,1,26,4],[26,5,26,6],[26,7,26,28],[26,29,26,35],[27,1,27,4],[27,5,27,6],[27,7,27,28],[27,29,27,30],[27,34,27,35],[24,1,24,4],[24,5,24,6],[24,7,24,28],[24,29,24,35],[25,1,25,4],[25,5,25,6],[25,7,25,28],[25,29,25,35],[23,1,23,4],[23,5,23,6],[23,7,23,17],[23,18,23,28],[23,29,23,32],[23,33,23,34],[21,1,21,4],[21,5,21,6],[21,7,21,28],[21,29,21,30],[22,1,22,4],[22,5,22,6],[22,7,22,28],[22,29,22,35],[19,33,19,35],[20,1,20,4],[20,5,20,6],[20,7,20,17],[20,18,20,28],[20,29,20,30],[18,1,18,4],[18,5,18,6],[18,7,18,17],[18,18,18,28],[18,29,18,30],[19,1,19,4],[19,5,19,6],[19,7,19,17],[19,18,19,28],[19,29,19,30],[16,22,16,28],[16,29,16,30],[17,1,17,4],[17,5,17,6],[17,7,17,17],[17,18,17,28],[17,29,17,30],[15,1,15,4],[15,5,15,6],[15,7,15,17],[15,18,15,28],[15,29,15,30],[16,1,16,4],[16,5,16,6],[16,7,16,10],[16,11,16,17],[16,18,16,21],[11,19,11,20],[11,21,11,22],[12,27,12,28],[12,29,12,30],[14,1,14,4],[14,5,14,6],[14,7,14,28],[14,29,14,35],[12,15,12,16],[12,17,12,18],[12,19,12,20],[12,21,12,22],[12,23,12,24],[12,25,12,26],[7,1,8,14],[8,17,8,20],[8,21,8,28],[8,29,8,31],[8,32,8,35],[11,1,12,1],[11,3,11,4],[11,5,11,6],[11,7,11,8],[11,9,11,10],[11,23,11,24],[11,25,11,26],[11,27,11,28],[11,29,11,30],[12,3,12,4],[12,5,12,6],[12,7,12,8],[12,9,12,10],[12,11,12,12],[12,13,12,14],[11,11,11,12],[11,13,11,14],[11,15,11,16],[11,17,11,18],[5,1,6,14],[5,17,5,20],[5,21,5,24],[5,25,5,28],[5,29,5,31],[5,32,5,35],[0,17,0,28],[0,32,0,33],[2,1,2,6],[2,17,2,20],[2,21,2,28],[2,29,2,31],[2,32,2,35]]}
[null,null,null,null,null,null,null,null,null,null,null,null,null,null,null,null,null,{"$f":"VLOOKUP(M7VC!V6,'M7VC-spec'!AN8:AO12,2,0)","v":" "},null,null,null,null,null,null,null,null,null,null,null,null,null,null,"Language : English",null,null,"Rev: 4"]
[]
[null,"M7VC series Inquiry Form",null,null,null,null,null,null,null,null,null,null,null,null,null,null,null,"Fill-in Date ：",null,null,null,null,null,null,null,null,null,null,null,"Author ："]
[]
[]
[null,"Please select an item from a drop down list in a cell with thick red borders. Options with ★ are under development. If it is chosen, the cell's color changes to yellow.",null,null,null,null,null,null,null,null,null,null,null,null,null,null,null,"Application ：",null,null,null,"General(Other)",null,null,null,null,null,null,null,"Machine Model ："]
[]
[null,"If the cell's color is red, the request is out of Kawasaki standard specification range. Even if the request is out of Kawasaki specification range, please describe the detail on the note and consult with Kawasaki."]
[null,null,null,null,null,null,null,null,null,null,null,null,null,null,null,null,null,"Customer ：",null,null,null,null,null,null,null,null,null,null,null,"Motor Model ：",null,null,{"$f":"C13&D13&F13&H13&J13&L13&N13&P13&R13&T13&V13&X13&Z13&AB13&AD13&AF13&AG13","v":"M7VC160AC47-AA1T1XXXN-**"}]
[]
[null,"Variable Displacement Motor"]
[null,"Model Code",1,2,null,3,null,4,null,5,null,6,null,null,null,7,null,8,null,9,null,10,null,11,null,12,null,13,null,14,null,null,15]
[null,null,"M7VC",{"$f":"IF(AD53<>\"\",AD53,\"\")","v":160},null,"A",null,{"$f":"IF(AD55<>\"\",AD55,\"\")","v":"C"},null,{"$f":"IF(AD59<>\"\",AD59,\"\")","v":4},null,{"$f":"IF(AD62<>\"\",AD62,\"\")","v":7},null,"-",null,{"$f":"IF(AD66<>\"\",AD66,\"\")","v":"A"},null,{"$f":"IF(AD67<>\"\",AD67,\"\")","v":"A"},null,{"$f":"IF(AD68<>\"\",AD68,\"\")","v":1},null,{"$f":"IF(AD71<>\"\",AD71,\"\")","v":"T1"},null,{"$f":"IF(AD85<>\"\",AD85,\"\")","v":"X"},null,{"$f":"IF(AD89<>\"\",AD89,\"\")","v":"X"},null,{"$f":"IF(AD93<>\"\",AD93,\"\")","v":"X"},null,"N",null,"-",{"$f":"IF(AD97<>\"\",AD97,\"\")","v":"**"}]
[]
[null,"Items",null,null,null,"Symbol",null,"Kawasaki Standard Specification",null,null,null,null,null,null,null,null,null,null,null,null,null,null,null,null,null,null,null,null,null,"Customer Specification"]
[null,"Max. / Min. Displacement",null,null,null,"qmax/qmin",null,{"$f":"IF(AG1=\"Language : English\",IF(AD66=\"V\",\"Max. Displacement: \"&'M7VC-spec'!AC117&\" \"&\"-\"&\" \"&TEXT('M7VC-spec'!AB117,\"0\")&\" \"&\"cm3\" & CHAR(10) &\"(In case Code V is selected in the section 7)\",\"Max. Displacement: \"&TEXT('M7VC-spec'!AF52,\"0\")&\" \"&\"cm3\"),IF(AD66=\"V\",\"最大押しのけ容量: \"&'M7VC-spec'!AC117&\" \"&\"-\"&\" \"&TEXT('M7VC-spec'!AB117,\"0\")&\" \"&\"cm3\" & CHAR(10) &\"(セクション7でコードVが選ばれた場合)\",\"最大押しのけ容量: \"&TEXT('M7VC-spec'!AF52,\"0\")&\" \"&\"cm3\"))","v":"Max. Displacement: 160 cm3"},null,null,null,null,null,null,null,null,null,null,{"$f":"IF(AG1=\"Language : English\",IF(AD67=\"V\",\"Min. Displacement: \"&TEXT('M7VC-spec'!AE117,\"0\")&\" \"&\"-\"&\" \"&TEXT('M7VC-spec'!AD117,\"0\")&\" \"&\"cm3\" & CHAR(10) &\"(In case Code V is selected in the section 8)\",\"Min. Displacement: \"&TEXT('M7VC-spec'!AM53,\"0\")&\" \"&\"cm3\"),IF(AD67=\"V\",\"最小押しのけ容量: \"&TEXT('M7VC-spec'!AE117,\"0\")&\" \"&\"-\"&\" \"&TEXT('M7VC-spec'!AD117,\"0\")&\" \"&\"cm3\" & CHAR(10) &\"(セクション8でコードVが選ばれた場合)\",\"最小押しのけ容量: \"&TEXT('M7VC-spec'!AM53,\"0\")&\" \"&\"cm3\"))","v":"Min. Displacement: 96 cm3"},null,null,null,null,null,null,null,null,null,null,"qmax:",null,null,"cm3","qmin:",null,"cm3"]
[null,"Max. Speed @ qmax / qmin",null,null,null,"Nnom/Nmax",null,"Max. Speed@qmax:",null,null,null,{"$f":"IF(AG1=\"Language : English\",\"Up to \"&TEXT('M7VC-spec'!AB109,\"0\")&\" \"&\"min-1\",\"\"&TEXT('M7VC-spec'!AB109,\"0\")&\" \"&\"min-1まで\")","v":"Up to 4900 min-1"},null,null,null,null,null,null,"Max. Speed@qmin:",null,null,null,{"$f":"IF(AG1=\"Language : English\",\"Up to \"&TEXT('M7VC-spec'!AD109,\"0\")&\" \"&\"min-1\",\"\"&TEXT('M7VC-spec'!AD109,\"0\")&\" \"&\"min-1まで\")","v":"Up to 4900 min-1"},null,null,null,null,null,null,"Nnom@qmax:",null,null,"min-1","Nmax@qmin:",null,"min-1"]
[null,"Max. / Nominal Pressure",null,null,null,"Pmax/Pnom",null,{"$f":"IF(AG1=\"Language : English\",\"Max. Pressure: Up to \"&'M7VC-spec'!AH117&\"MPa\",\"最高圧力: \"&'M7VC-spec'!AH117&\"MPaまで\")","v":"Max. Pressure: Up to 45MPa"},null,null,null,null,null,null,null,null,null,null,{"$f":"IF(AG1=\"Language : English\",\"Nominal Pressure: Up to \"&'M7V-spec'!AI117&\" \"&\"MPa\",\"定格圧力: \"&'M7V-spec'!AI117&\" \"&\"Mpaまで\")","v":"Nominal Pressure: Up to 40 MPa"},null,null,null,null,null,null,null,null,null,null,"Pmax:",null,null,"MPa","Pnom:",null,"MPa"]
[null,"Case Drain Pressure",null,null,null,"---",null,"Continuous: Up to 0.2 MPa",null,null,null,null,null,null,null,null,null,null,"Peak: Up to 0.6 MPa",null,null,null,null,null,null,null,null,null,null,"Continuous:",null,null,"MPa","Peak:",null,"MPa"]
[null,"CBV - Set Pressure of Relief Valve / Break Release Port",null,null,null,"---",null,"Set Pressure of Relief Valve (STD): 34.3MPa",null,null,null,null,null,null,null,null,null,null,"Break Release Port: w/o Shuttle Valve or w/ Shuttle Valve or w/ Hydraulic Reducing Relief Valve",null,null,null,null,null,null,null,null,null,null,"Relief:",null,null,"MPa"]
[null,"CBV - Cracking Pressure of Spool / Check Valve",null,null,null,"---",null,{"$f":"IF(AG1=\"Language : English\",\"Cracking Pressure of Spool (STD): \"&TEXT('M7VC-spec'!AL117,\"0.00\")&\"MPa\"&\" \"&\"or\"&\" \"&TEXT('M7VC-spec'!AM117,\"0.00\")&\"MPa\",\"スプールのクラッキング圧力 (標準): \"&TEXT('M7VC-spec'!AL117,\"0.00\")&\"MPa\"&\" \"&\"または\"&\" \"&TEXT('M7VC-spec'!AM117,\"0.00\")&\"MPa\")","v":"Cracking Pressure of Spool (STD): 0.65MPa or 0.90MPa"},null,null,null,null,null,null,null,null,null,null,"Cracking Pressure of Check Valve (STD): 0.03MPa",null,null,null,null,null,null,null,null,null,null,"Spool:",null,null,"MPa","Check Valve:",0.03,"MPa"]
[null,"Oil Temperature Range (Inlet)",null,null,null,"---",null,"-20 to 95 ℃ (Drain temperature: up to Max. 115℃ momentarily)",null,null,null,null,null,null,null,null,null,null,null,null,null,null,null,null,null,null,null,null,null,"Operating:",null,null,"℃","Intermittent:",null,"℃"]
[null,"Mounting Direction",null,null,null,"---",null,"Vertical or Horizontal"]
[null,"Oil Type / Oil Viscosity Range",null,null,null,"---",null,"Equivalent to ISO VG46",null,null,null,null,null,null,null,null,null,null,"10 to 1,000 mm2/s(cSt)",null,null,null,null,null,null,null,null,null,null,null,null,null,null,null,null,"mm2/s(cSt)"]
[null,"Name Plate",null,null,null,"---",null,"KHI Standard (Supplier Name, Model Code and S/N)"]
[null,"Paint",null,null,null,"---",null,"KHI Standard (Act Primer Red Brown)"]
[null,"Customer Part Number",null,null,null,"---"]
[null,"Proto Type Requirement",null,null,null,"---",null,null,null,null,null,null,null,null,null,null,null,null,null,null,null,null,null,null,null,null,null,null,null,"Qty's:",null,null,"pcs","Due date:"]
[null,"Production Schedule",null,null,null,"---",null,null,null,null,null,null,null,null,null,null,null,null,null,null,null,null,null,null,null,null,null,null,null,"Qty's:",null,null,"pcs/years","Start date:"]
[null,"Original Motor Model (Competitor)",null,null,null,"---",null,"If the model of original motor can be found, please write down for a reference"]
[]
[null,"Comments (Other requirements)",null,null,null,null,null,null,null,null,null,null,null,null,null,null,null,null,null,null,"Operating condition, Duty cycle etc. (Describe your detail)"]
[]
[]
[]
[]
[]
[]
[]
[]
[]
[]
[]
[]
[]
[]
[]
[]
[]
[]
[]
[null,"Items",null,null,null,"No.",null,"Kawasaki Standard Specification",null,null,null,null,null,null,null,null,null,null,null,null,null,null,null,null,null,null,null,null,null,"Code",null,"Note"]
[null,"Motor Size",null,null,null,2,null," 160",null,null,null,null,null,null,null,null,null,null,null,null,null,null,null,null,null,null,null,null,null,160]
[null,"Series Specifications",null,null,null,3,null," A : Standard",null,null,null,null,null,null,null,null,null,null,null,null,null,null,null,null,null,null,null,null,null,"A"]
[null,"Mounting Flange and Port Position",null,null,null,4,null,"Mounting",null,null,null,null,null,null,null,null,null,null,"Port Position",null,null,null,null,null,null,null,null,null,null,"C"]
[null,null,null,null,null,null,null," C : "," Spigot φ200 (φ250 - 2bolt Mount)",null,null,null,null,null,null,null,null,null," Rear",null,null,null,null,null,null,null,null,{"$f":"IF('M7VC-spec'!AB22=\"○\",\"★\",\"\")","v":""}]
[null,null,null,null,null,null,null," D : "," Spigot φ200 (φ250 - 2bolt Mount)",null,null,null,null,null,null,null,null,null," Side",null,null,null,null,null,null,null,null,{"$f":"IF('M7VC-spec'!AB23=\"○\",\"★\",\"\")","v":"★"}]
[null,null,null,null,null,null,null," E : "," Spigot φ200 (φ250 - 2bolt Mount)",null,null,null,null,null,null,null,null,null," Bottom",null,null,null,null,null,null,null,null,{"$f":"IF('M7VC-spec'!AB24=\"○\",\"★\",\"\")","v":"★"}]
[null,"Port and Flange Fixing Thread",null,null,null,5,null,"Type of Threaded Port",null,null,null,null,null,null,null,null,null,null,"Thread Type for Flange Port",null,null,null,null,null,null,null,null,null,null,4]
[null,null,null,null,null,null,null," 1 : ANSI ISO11926",null,null,null,null,null,null,null,null,null,null," ANSI ASMEB1.1",null,null,null,null,null,null,null,null,{"$f":"IF('M7VC-spec'!AB29=\"○\",\"★\",\"\")","v":"★"}]
[null,null,null,null,null,null,null," 4 : Parallel Piping ISO228",null,null,null,null,null,null,null,null,null,null," Metric ISO724",null,null,null,null,null,null,null,null,{"$f":"IF('M7VC-spec'!AB30=\"○\",\"★\",\"\")","v":""}]
[null,"Shaft End",null,null,null,6,null," 2 : ANSI B92.1, 1 3/4 in 13T 8/16DP",null,null,null,null,null,null,null,null,null,null,null,null,null,null,null,null,null,null,null,{"$f":"IF('M7VC-spec'!AB37=\"○\",\"★\",\"\")","v":"★"},null,7]
[null,null,null,null,null,null,null," 3 : ANSI B92.1, 2 in 15T 8/16DP",null,null,null,null,null,null,null,null,null,null,null,null,null,null,null,null,null,null,null,{"$f":"IF('M7VC-spec'!AB38=\"○\",\"★\",\"\")","v":"★"}]
[null,null,null,null,null,null,null," 7 : DIN 5480, W45×2×21×9 g",null,null,null,null,null,null,null,null,null,null,null,null,null,null,null,null,null,null,null,{"$f":"IF('M7VC-spec'!AB42=\"○\",\"★\",\"\")","v":""},null,null,null,{"$f":"IF('M7VC-spec'!AF20=\"×\",\"Please check the combination availability of the code at [5] [6].\",\"\")","v":""}]
[null,null,null,null,null,null,null," 8 : DIN 5480, W50×2×24×9 g",null,null,null,null,null,null,null,null,null,null,null,null,null,null,null,null,null,null,null,{"$f":"IF('M7VC-spec'!AB43=\"○\",\"★\",\"\")","v":""}]
[null,"Max. Displacement  (cm3)",null,null,null,7,null," A :",{"$f":"'M7VC-spec'!AF48","v":160},null,"B :",{"$f":"'M7VC-spec'!AF49","v":155},null,"C :",{"$f":"'M7VC-spec'!AF50","v":150},null,"D :",{"$f":"'M7VC-spec'!AF51","v":140},null,null,null,null,"V :",{"$f":"'M7VC-spec'!AC117&\" \"&\"-\"&\" \"&TEXT('M7VC-spec'!AB117,\"0\")","v":"160 - 128"},null,null,null,null,null,"A"]
[null,"Min. Displacement  (cm3)",null,null,null,8,null," A :",{"$f":"'M7VC-spec'!AM48","v":96},null,"B :",{"$f":"'M7VC-spec'!AM49","v":80},null,"C :",{"$f":"'M7VC-spec'!AM50","v":60},null,"D :",{"$f":"'M7VC-spec'!AM51","v":40},null,"E :",{"$f":"'M7VC-spec'!AM52","v":32},null,"V :",{"$f":"TEXT('M7VC-spec'!AE117,\"0\")&\" \"&\"-\"&\" \"&TEXT('M7VC-spec'!AD117,\"0\")","v":"128 - 0"},null,null,null,null,null,"A"]
[null,"Speed Sensor",null,null,null,9,null," 1 : w/o Speed Sensor",null,null,null,null,null,null,null,null,null,null,null,null,null,null,null,null,null,null,null,null,null,1]
[null,null,null,null,null,null,null," 2 : w/ Speed Sensor (A Port Side)"]
[null,null,null,null,null,null,null," B : w/ Speed Sensor (B Port Side)"]
[null,"Regulator (For all possible combinations of regulators and optional valves see the table for M7V Control Options shown in the catalog.)",null,null,null,10,null,"T"," Two Position Displacement Control",null,null,null,null," T1 : Negative Control, 24V",null,null,null,null,null,null,null,null,null,null,null,null,null,null,null,"T1"]
[null,null,null,null,null,null,null,null,null,null,null,null,null," T2 : Negative Control, 12V"]
[null,null,null,null,null,null,null,"Y"," Hydraulic Two Position Displacement Control",null,null,null,null," Y1 : Negative Control"]
[null,null,null,null,null,null,null,"E"," Electric Proportional Control",null,null,null,null," E1 : Negative Control, 24V"]
[null,null,null,null,null,null,null,null,null,null,null,null,null," E2 : Positive Control, 24V"]
[null,null,null,null,null,null,null,null,null,null,null,null,null," E3 : Negative Control, 12V"]
[null,null,null,null,null,null,null,null,null,null,null,null,null," E4 : Positive Control, 12V"]
[null,null,null,null,null,null,null,"P"," Hydraulic Proportional Control",null,null,null,null," P1 : Negative Control Type, Adjustable Range: Pi = 2.5 MPa"]
[null,null,null,null,null,null,null,null,null,null,null,null,null," P2 : Positive Control Type, Adjustable Range: Pi = 2.5 MPa"]
[null,null,null,null,null,null,null,null,null,null,null,null,null," P3 : Negative Control Type, Adjustable Range: Pi = 1.0 MPa"]
[null,null,null,null,null,null,null,null,null,null,null,null,null," P4 : Positive Control Type, Adjustable Range: Pi = 1.0 MPa"]
[null,null,null,null,null,null,null,"H"," Pressure Related Control",null,null,null,null," H1 : w/o Pressure Increase"]
[null,null,null,null,null,null,null,null,null,null,null,null,null," H2 : w/ Pressure Increase"]
[null,null,null,null,null,null,null,null,null,null,null,null,null," H3 : w/ Pressure Increase and Hydraulic Remote Control"]
[null,"Optional Valve (For all possible combinations of optional valves and regulators see the table for M7V Control Options shown in the catalog.)",null,null,null,11,null," X : w/o Any Optional Valve",null,null,null,null,null,null,null,null,null,null,null,null,null,null,null,null,null,null,null,null,null,"X"]
[null,null,null,null,null,null,null," A1 : w/ Pressure Control Valve (for Regulator Code E,P)"]
[null,null,null,null,null,null,null," B1 : w/ Electric Two-position Control Valve, 24V (for Regulator Code H)",null,null,null,null,null,null,null,null,null,null,null,null,null,null,null,null,null,null,null,null,null,null,null,{"$f":"IF('M7V-spec'!AB64=\"×\",\"Please check the combination availability of code at [10] [11].\",\"\")","v":""}]
[null,null,null,null,null,null,null," B2 : w/ Electric Two-position Control Valve, 12V (for Regulator Code H)"]
[null,"Accessories",null,null,null,12,null,"Flushing Valve",null,null,null,null,"Internal Cooling",null,null,null,null,"Flushing Flow",null,null,null,null,null,null,null,null,null,null,null,"X"]
[null,null,null,null,null,null,null," X : w/o Flushing Valve",null,null,null,null," w/ Internal Cooling",null,null,null,null,"1.8 L/min (M7V85/112), 5.0 L/min (M7V160/212) at ΔP=2.5MPa",null,null,null,null,null,null,null,null,null,{"$f":"IF('M7VC-spec'!AB86=\"○\",\"★\",\"\")","v":""}]
[null,null,null,null,null,null,null," 1 : w/o Flushing Valve",null,null,null,null," w/o Internal Cooling",null,null,null,null,"-",null,null,null,null,null,null,null,null,null,{"$f":"IF('M7VC-spec'!AB87=\"○\",\"★\",\"\")","v":""},null,null,null,{"$f":"IF('M7V-spec'!AG86=\"b\",\"Please note the coolability inside of the motor is reduced Without Flushing Spool. The allowable max. operating speed is reduced.\",\"\")","v":""}]
[null,null,null,null,null,null,null," 2 : w/ Flushing Valve",null,null,null,null," w/ Internal Cooling",null,null,null,null,"1.8 L/min (M7V85/112), 5.0 L/min (M7V160/212) at ΔP=2.5MPa",null,null,null,null,null,null,null,null,null,{"$f":"IF('M7VC-spec'!AB88=\"○\",\"★\",\"\")","v":"★"}]
[null,"Counter Balance Valve",null,null,null,13,null," X : w/o Counter Balance Valve",null,null,null,null,null,null,null,null,null,null,null,null,null,null,null,null,null,null,null,{"$f":"IF('M7VC-spec'!AB91=\"○\",\"★\",\"\")","v":""},null,"X"]
[null,null,null,null,null,null,null," 1 : w/ Counter Balance Valve Hoist at CW rotation (A port inlet) viewed from the shaft end",null,null,null,null,null,null,null,null,null,null,null,null,null,null,null,null,null,null,null,{"$f":"IF('M7VC-spec'!AB92=\"○\",\"★\",\"\")","v":"★"},null,null,null,{"$f":"IF('M7V-spec'!AG91=\"b\",\"Please note the Max. pressure range is reduced due to CBV's Relief Valve (Up to 34.3MPa).\",\"\")","v":""}]
[null,null,null,null,null,null,null," 2 : w/ Counter Balance Valve Hoist at CCW rotation (B port inlet) viewed from the shaft end",null,null,null,null,null,null,null,null,null,null,null,null,null,null,null,null,null,null,null,{"$f":"IF('M7VC-spec'!AB93=\"○\",\"★\",\"\")","v":"★"}]
[null,"Response Speed of Control",null,null,null,14,null," N : Standard",null,null,null,null,null,null,null,null,null,null,null,null,null,null,null,null,null,null,null,null,null,"N"]
[null,"Design Code",null,null,null,15,null," ** : 01　～",null,null,null,null,null,null,null,null,null,null,null,null,null,null,null,null,null,null,null,null,null,"**"]

{"sheet":"M7X","index":5,"n_rows":96,"n_cols":36,"rows_kept":96,"cut":false,"hidden":false,"merged":[[2,1,2,6],[5,1,6,14],[7,1,8,14],[76,31,80,35],[81,31,82,35],[11,1,12,1],[11,3,11,4],[11,5,11,6],[11,7,11,8],[11,9,11,10],[11,11,11,12],[11,23,11,24],[12,19,12,20],[12,21,12,22],[12,25,12,26],[12,3,12,4],[12,5,12,6],[12,7,12,8],[12,9,12,10],[12,11,12,12],[27,34,27,35],[12,15,12,16],[16,31,16,34],[5,21,5,24],[5,25,5,28],[64,29,66,30],[8,32,8,35],[0,17,0,28],[8,29,8,31],[12,17,12,18],[0,32,0,33],[2,17,2,20],[2,21,2,28],[2,29,2,31],[2,32,2,35],[5,17,5,20],[5,29,5,31],[5,32,5,35],[8,17,8,20],[11,17,11,18],[11,19,11,20],[11,21,11,22],[11,25,11,26],[8,21,8,28],[12,23,12,24],[20,7,20,17],[20,18,20,28],[16,7,16,10],[11,13,11,14],[63,1,63,4],[11,15,11,16],[63,5,63,6],[63,7,63,28],[63,29,63,30],[63,31,63,35],[15,7,15,28],[12,13,12,14],[15,31,15,34],[14,1,14,4],[14,5,14,6],[14,7,14,28],[14,29,14,35],[15,1,15,4],[15,5,15,6],[15,29,15,30],[16,1,16,4],[16,5,16,6],[19,1,19,4],[19,5,19,6],[27,5,27,6],[31,1,31,19],[29,1,29,4],[16,11,16,28],[18,7,18,17],[18,18,18,28],[18,29,18,30],[16,29,16,30],[19,7,19,17],[19,18,19,28],[19,29,19,30],[20,29,20,30],[79,27,79,28],[80,7,80,26],[80,27,80,28],[74,7,74,17],[27,7,27,28],[27,29,27,30],[68,1,72,4],[68,5,72,6],[68,7,68,17],[68,18,68,28],[69,8,69,17],[69,18,69,26],[69,27,69,28],[70,8,70,17],[66,7,66,26],[66,27,66,28],[64,1,66,4],[64,5,66,6],[64,7,64,26],[64,27,64,28],[87,27,87,28],[85,27,85,28],[86,27,86,28],[85,7,85,17],[83,1,83,4],[83,5,83,6],[83,27,83,28],[83,29,83,30],[73,1,75,4],[73,5,75,6],[73,7,73,17],[73,18,73,28],[81,7,81,26],[81,27,81,28],[82,7,82,26],[82,27,82,28],[73,29,75,30],[76,7,76,26],[76,27,76,28],[77,7,77,26],[77,27,77,28],[78,7,78,26],[78,27,78,28],[79,7,79,26],[92,31,94,35],[93,7,93,26],[93,27,93,28],[94,7,94,26],[94,27,94,28],[92,1,94,4],[92,5,94,6],[92,7,92,26],[92,29,94,30],[92,27,92,28],[95,1,95,4],[95,5,95,6],[95,7,95,26],[95,27,95,28],[95,29,95,30],[95,31,95,35],[17,1,17,4],[17,5,17,6],[17,7,17,17],[17,18,17,28],[17,29,17,30],[19,33,19,35],[20,1,20,4],[20,5,20,6],[21,1,21,4],[21,5,21,6],[21,7,21,28],[21,29,21,30],[22,1,22,4],[22,5,22,6],[22,7,22,28],[22,29,22,35],[18,1,18,4],[18,5,18,6],[23,1,23,4],[23,5,23,6],[23,7,23,17],[23,18,23,28],[23,29,23,32],[23,33,23,34],[67,1,67,4],[67,5,67,6],[67,7,67,26],[67,27,67,28],[67,29,67,30],[67,31,67,35],[89,27,89,28],[90,27,90,28],[91,27,91,28],[76,1,82,4],[76,5,82,6],[76,29,82,30],[29,5,29,6],[29,7,29,28],[29,29,29,35],[71,8,71,17],[71,18,71,26],[71,27,71,28],[72,8,72,17],[72,18,72,26],[72,27,72,28],[84,1,87,4],[84,5,87,6],[84,7,84,17],[84,18,84,28],[85,18,85,26],[86,18,86,26],[87,18,87,26],[86,8,86,17],[87,8,87,17],[65,27,65,28],[31,20,31,35],[88,8,88,17],[89,1,91,4],[89,5,91,6],[28,1,28,4],[28,5,28,6],[24,1,24,4],[24,5,24,6],[24,7,24,28],[24,29,24,35],[25,1,25,4],[25,5,25,6],[25,7,25,28],[25,29,25,35],[32,1,61,19],[32,20,61,35],[26,1,26,4],[26,5,26,6],[26,7,26,28],[26,29,26,35],[27,1,27,4],[90,7,90,26],[91,7,91,26],[88,18,88,26],[88,27,88,28],[84,29,88,30],[84,31,88,35],[89,29,91,30],[28,7,28,28],[28,29,28,30],[28,34,28,35],[89,7,89,26],[83,31,83,35],[89,31,89,35],[90,31,91,35],[73,31,75,35],[74,18,74,24],[74,27,74,28],[75,7,75,17],[68,29,72,30],[68,31,72,35],[75,18,75,24],[75,27,75,28],[70,18,70,26],[70,27,70,28],[64,31,66,35],[65,7,65,26]]}
[null,null,null,null,null,null,null,null,null,null,null,null,null,null,null,null,null,{"$f":"VLOOKUP(M7X!V6,'M7X-spec'!AN8:AO12,2,0)","v":" "},null,null,null,null,null,null,null,null,null,null,null,null,null,null,"Language : English",null,null,"Rev: 4"]
[]
[null,"M7X series Inquiry Form",null,null,null,null,null,null,null,null,null,null,null,null,null,null,null,"Fill-in Date ：",null,null,null,null,null,null,null,null,null,null,null,"Author ："]
[]
[]
[null,"Please select an item from a drop down list in a cell with thick red borders. Options with ★ are under development. If it is chosen, the cell's color changes to yellow.",null,null,null,null,null,null,null,null,null,null,null,null,null,null,null,"Application ：",null,null,null,"General(Other)",null,null,null,null,null,null,null,"Machine Model ："]
[]
[null,"If the cell's color is red, the request is out of Kawasaki standard specification range. Even if the request is out of Kawasaki specification range, please describe the detail on the note and consult with Kawasaki."]
[null,null,null,null,null,null,null,null,null,null,null,null,null,null,null,null,null,"Customer ：",null,null,null,null,null,null,null,null,null,null,null,"Motor Model ：",null,null,{"$f":"C13&D13&F13&H13&J13&L13&N13&P13&R13&T13&V13&X13&Z13","v":"M7X160AA12-A-**"}]
[]
[null,"Fixed Displacement Motor"]
[null,"Model Code",1,2,null,3,null,4,null,5,null,6,null,null,null,7,null,8,null,9,null,10,null,null,null,11]
[null,null,"M7X",{"$f":"IF(AD65<>\"\",AD65,\"\")","v":160},null,"A",null,{"$f":"IF(AD69<>\"\",AD69,\"\")","v":"A"},null,{"$f":"IF(AD74<>\"\",AD74,\"\")","v":1},null,{"$f":"IF(AD77<>\"\",AD77,\"\")","v":2},null,"-",null,{"$f":"IF(AD84<>\"\",AD84,\"\")","v":"A"},null,{"$f":"IF(AD85=\"Blank\",\"\",AD85)","v":""},null,{"$f":"IF(AD90=\"Blank\",\"\",AD90)","v":""},null,{"$f":"IF(AD93=\"Blank\",\"\",AD93)","v":""},null,"-",null,{"$f":"IF(AD96<>\"\",AD96,\"\")","v":"**"}]
[]
[null,"Items",null,null,null,"Symbol",null,"Kawasaki Standard Specification",null,null,null,null,null,null,null,null,null,null,null,null,null,null,null,null,null,null,null,null,null,"Customer Specification"]
[null,"Max. Displacement",null,null,null,"qmax",null,{"$f":"IF(AG1=\"Language : English\",\"Max. Displacement: \"&TEXT('M7X-spec'!Z52,\"0\")&\" \"&\"cc/rev\",\"最大押しのけ容積: \"&TEXT('M7X-spec'!Z52,\"0\")&\" \"&\"cc/rev\")","v":"Max. Displacement: 160 cc/rev"},null,null,null,null,null,null,null,null,null,null,null,null,null,null,null,null,null,null,null,null,null,"qmax:",null,null,null,null,null,"cm3"]
[null,"Max. Speed @ qmax",null,null,null,"Nnom",null,"Max. Speed@qmax:",null,null,null,{"$f":"IF(AG1=\"Language : English\",\"Up to \"&TEXT('M7X-spec'!V81,\"0\")&\" \"&\"min-1\",\"\"&TEXT('M7X-spec'!V81,\"0\")&\" \"&\"min-1まで\")","v":"Up to 3600 min-1"},null,null,null,null,null,null,null,null,null,null,null,null,null,null,null,null,null,"Nnom:",null,null,null,null,null,"min-1"]
[null,"Max. / Nominal Pressure",null,null,null,"Pmax/Pnom",null,{"$f":"IF(AG1=\"Language : English\",\"Max. Pressure: Up to \"&TEXT('M7X-spec'!W81,\"0\")&\" \"&\"MPa\"&\"\",\"最高圧力: \"&TEXT('M7X-spec'!W81,\"0\")&\" \"&\"MPa\"&\"まで\")","v":"Max. Pressure: Up to 45 MPa"},null,null,null,null,null,null,null,null,null,null,{"$f":"IF(AG1=\"Language : English\",\"Nominal Pressure: Up to \"&TEXT('M7X-spec'!X81,\"0\")&\" \"&\"MPa\",\"定格圧力: \"&TEXT('M7X-spec'!X81,\"0\")&\" \"&\"MPaまで\")","v":"Nominal Pressure: Up to 40 MPa"},null,null,null,null,null,null,null,null,null,null,"Pmax:",null,null,"MPa","Pnom:",null,"MPa"]
[null,"Case Drain Pressure",null,null,null,"---",null,"Continuous: Up to 0.2 MPa",null,null,null,null,null,null,null,null,null,null,"Peak: Up to 0.6 MPa",null,null,null,null,null,null,null,null,null,null,"Continuous:",null,null,"MPa","Peak:",null,"MPa"]
[null,"CBV - Set Pressure of Relief Valve / Break Release Port",null,null,null,"---",null,"Set Pressure of Relief Valve (STD): 34.3MPa",null,null,null,null,null,null,null,null,null,null,"Break Release Port: w/o Shuttle Valve or w/ Shuttle Valve or w/ Hydraulic Reducing Relief Valve",null,null,null,null,null,null,null,null,null,null,"Relief:",null,34.299999999999997,"MPa"]
[null,"CBV - Cracking Pressure of Spool / Check Valve",null,null,null,"---",null,{"$f":"IF(AG1=\"Language : English\",\"Cracking Pressure of Spool (STD): \"&TEXT('M7X-spec'!AA81,\"0.00\")&\"MPa\"&\" \"&\"or\"&\" \"&TEXT('M7X-spec'!AB81,\"0.00\")&\"MPa\",\"スプールのクラッキング圧力 (標準): \"&TEXT('M7X-spec'!AA81,\"0.00\")&\"MPa\"&\" \"&\"または\"&\" \"&TEXT('M7X-spec'!AB81,\"0.00\")&\"MPa\")","v":"Cracking Pressure of Spool (STD): 0.65MPa or 0.90MPa"},null,null,null,null,null,null,null,null,null,null,{"$f":"IF(AG1=\"Language : English\",\"Cracking Pressure of Check Valve (STD): 0.03MPa\",\"チェック弁のクラッキング圧力 (標準): 0.03MPa\")","v":"Cracking Pressure of Check Valve (STD): 0.03MPa"},null,null,null,null,null,null,null,null,null,null,"Spool:",null,null,"MPa","Check Valve:",0.03,"MPa"]
[null,"Oil Temperature Range (Inlet)",null,null,null,"---",null,"-20 to 95 ℃ (Drain temperature: up to Max. 115℃ momentarily)",null,null,null,null,null,null,null,null,null,null,null,null,null,null,null,null,null,null,null,null,null,"Operating:",null,null,"℃","Intermittent:",null,"℃"]
[null,"Mounting Direction",null,null,null,"---",null,"Vertical or Horizontal"]
[null,"Oil Type / Oil Viscosity Range",null,null,null,"---",null,"Equivalent to ISO VG46",null,null,null,null,null,null,null,null,null,null,"10 to 1,000 mm2/s(cSt)",null,null,null,null,null,null,null,null,null,null,null,null,null,null,null,null,"mm2/s(cSt)"]
[null,"Name Plate",null,null,null,"---",null,"KHI Standard (Supplier Name, Model Code and S/N)"]
[null,"Paint",null,null,null,"---",null,"KHI Standard (Act Primer Red Brown)"]
[null,"Customer Part Number",null,null,null,"---"]
[null,"Proto Type Requirement",null,null,null,"---",null,null,null,null,null,null,null,null,null,null,null,null,null,null,null,null,null,null,null,null,null,null,null,"Qty's:",null,null,"pcs","Due date:"]
[null,"Production Schedule",null,null,null,"---",null,null,null,null,null,null,null,null,null,null,null,null,null,null,null,null,null,null,null,null,null,null,null,"Qty's:",null,null,"pcs/years","Start date:"]
[null,"Original Pump Model (Competitor)",null,null,null,"---",null,"If the model of original motor can be found, please write down for a reference"]
[]
[null,"Comments (Other requirements)",null,null,null,null,null,null,null,null,null,null,null,null,null,null,null,null,null,null,"Operating condition, Duty cycle etc. (Describe your detail)"]
[]
[]
[]
[]
[]
[]
[]
[]
[]
[]
[]
[]
[]
[]
[]
[]
[]
[]
[]
[]
[]
[]
[]
[]
[]
[]
[]
[]
[]
[]
[]
[null,"Items",null,null,null,"No.",null,"Kawasaki Standard Specification",null,null,null,null,null,null,null,null,null,null,null,null,null,null,null,null,null,null,null,null,null,"Code",null,"Note"]
[null,"Motor Size",null,null,null,2,null," 85",null,null,null,null,null,null,null,null,null,null,null,null,null,null,null,null,null,null,null,{"$f":"IF('M7X-spec'!V12=\"○\",\"★\",\"\")","v":""},null,160]
[null,null,null,null,null,null,null," 112",null,null,null,null,null,null,null,null,null,null,null,null,null,null,null,null,null,null,null,{"$f":"IF('M7X-spec'!V13=\"○\",\"★\",\"\")","v":""}]
[null,null,null,null,null,null,null," 160",null,null,null,null,null,null,null,null,null,null,null,null,null,null,null,null,null,null,null,{"$f":"IF('M7X-spec'!V14=\"○\",\"★\",\"\")","v":""}]
[null,"Series Specifications",null,null,null,3,null," A : Standard",null,null,null,null,null,null,null,null,null,null,null,null,null,null,null,null,null,null,null,null,null,"A"]
[null,"Mounting Flange and Port Position",null,null,null,4,null,"Mounting",null,null,null,null,null,null,null,null,null,null,"Port Position",null,null,null,null,null,null,null,null,null,null,"A"]
[null,null,null,null,null,null,null," A : ","SAE J744, 4-bolt Mount",null,null,null,null,null,null,null,null,null," Rear",null,null,null,null,null,null,null,null,{"$f":"IF('M7X-spec'!V21=\"○\",\"★\",\"\")","v":""}]
[null,null,null,null,null,null,null," B : ","SAE J744, 4-bolt Mount",null,null,null,null,null,null,null,null,null," Side",null,null,null,null,null,null,null,null,{"$f":"IF('M7X-spec'!V22=\"○\",\"★\",\"\")","v":""}]
[null,null,null,null,null,null,null," C : ","ISO 3019-2, 4-bolt Mount",null,null,null,null,null,null,null,null,null," Rear",null,null,null,null,null,null,null,null,{"$f":"IF('M7X-spec'!V23=\"○\",\"★\",\"\")","v":""}]
[null,null,null,null,null,null,null," D : ","ISO 3019-2, 4-bolt Mount",null,null,null,null,null,null,null,null,null," Side",null,null,null,null,null,null,null,null,{"$f":"IF('M7X-spec'!V24=\"○\",\"★\",\"\")","v":""}]
[null,"Port and Flange Fixing Thread",null,null,null,5,null,"Type of Threaded Port",null,null,null,null,null,null,null,null,null,null,"Thread Type for Flange Port",null,null,null,null,null,null,null,null,null,null,1]
[null,null,null,null,null,null,null," 1 : ANSI ISO11926",null,null,null,null,null,null,null,null,null,null," ANSI ASMEB1.1",null,null,null,null,null,null,null,null,{"$f":"IF('M7X-spec'!V30=\"○\",\"★\",\"\")","v":""}]
[null,null,null,null,null,null,null," 4 : Parallel Piping ISO228",null,null,null,null,null,null,null,null,null,null," Metric ISO724",null,null,null,null,null,null,null,null,{"$f":"IF('M7X-spec'!V31=\"○\",\"★\",\"\")","v":""}]
[null,"Shaft End",null,null,null,6,null," 2 : ANSI B92.1, 1 3/4 in 13T 8/16DP (for M7X112/160)",null,null,null,null,null,null,null,null,null,null,null,null,null,null,null,null,null,null,null,{"$f":"IF('M7X-spec'!V37=\"○\",\"★\",\"\")","v":""},null,2]
[null,null,null,null,null,null,null," 4 : ANSI B92.1, 1 3/8 in 21T 16/32DP (for M7X85)",null,null,null,null,null,null,null,null,null,null,null,null,null,null,null,null,null,null,null,{"$f":"IF('M7X-spec'!V38=\"○\",\"★\",\"\")","v":""}]
[null,null,null,null,null,null,null," 5 : DIN 5480, W35×2×16×9 g (for M7X85)",null,null,null,null,null,null,null,null,null,null,null,null,null,null,null,null,null,null,null,{"$f":"IF('M7X-spec'!V39=\"○\",\"★\",\"\")","v":""}]
[null,null,null,null,null,null,null," 6 : DIN 5480, W40×2×18×9 g (for M7X85/112)",null,null,null,null,null,null,null,null,null,null,null,null,null,null,null,null,null,null,null,{"$f":"IF('M7X-spec'!V40=\"○\",\"★\",\"\")","v":""}]
[null,null,null,null,null,null,null," 7 : DIN 5480, W45×2×21×9 g (for M7X112/160)",null,null,null,null,null,null,null,null,null,null,null,null,null,null,null,null,null,null,null,{"$f":"IF('M7X-spec'!V41=\"○\",\"★\",\"\")","v":""}]
[null,null,null,null,null,null,null," 8 : DIN 5480, W50×2×24×9 g (for M7X112/160)",null,null,null,null,null,null,null,null,null,null,null,null,null,null,null,null,null,null,null,{"$f":"IF('M7X-spec'!V42=\"○\",\"★\",\"\")","v":""},null,null,null,{"$f":"IF('M7X-spec'!Z21=\"×\",\"Please check the combination availability of the code [4] [5] [6].\",\"\")","v":""}]
[null,null,null,null,null,null,null," 9 : ANSI B92.1, 1 1/4 in 14T 12/24DP (for M7X85)",null,null,null,null,null,null,null,null,null,null,null,null,null,null,null,null,null,null,null,{"$f":"IF('M7X-spec'!V43=\"○\",\"★\",\"\")","v":""}]
[null,"Max. Displacement  (cm3)",null,null,null,7,null," A :",{"$f":"'M7X-spec'!Z48","v":160},null,"B :",{"$f":"'M7X-spec'!Z49","v":"-"},null,"C :",{"$f":"'M7X-spec'!Z50","v":"-"},null,"D :",{"$f":"'M7X-spec'!Z51","v":"-"},null,null,null,null,null,null,null,null,null,null,null,"A"]
[null,"Optional Valve",null,null,null,8,null,"Counter Balance Valve",null,null,null,null,null,null,null,null,null,null,"Flushing Valve",null,null,null,null,null,null,null,null,null,null,"Blank"]
[null,null,null,null,null,null,null," Blank : w/o Counter Balance Valve",null,null,null,null,null,null,null,null,null,null," w/o Flushing Valve",null,null,null,null,null,null,null,null,{"$f":"IF('M7X-spec'!V54=\"○\",\"★\",\"\")","v":""}]
[null,null,null,null,null,null,null," X :","w/ Counter Balance Valve Hoist at CW rotation (A port inlet) viewed from the shaft end",null,null,null,null,null,null,null,null,null," w/o Flushing Valve",null,null,null,null,null,null,null,null,{"$f":"IF('M7X-spec'!V55=\"○\",\"★\",\"\")","v":"★"}]
[null,null,null,null,null,null,null," Y :","w/ Counter Balance Valve Hoist at CCW rotation (B port inlet) viewed from the shaft end",null,null,null,null,null,null,null,null,null," w/o Flushing Valve",null,null,null,null,null,null,null,null,{"$f":"IF('M7X-spec'!V56=\"○\",\"★\",\"\")","v":"★"}]
[null,null,null,null,null,null,null," Z :","w/o Counter Balance Valve",null,null,null,null,null,null,null,null,null," w/ Flushing Valve",null,null,null,null,null,null,null,null,{"$f":"IF('M7X-spec'!V57=\"○\",\"★\",\"\")","v":"★"}]
[null,"Port Option for Flushing Valve Assembly",null,null,null,9,null," Blank : w/o Flushing Valve",null,null,null,null,null,null,null,null,null,null,null,null,null,null,null,null,null,null,null,{"$f":"IF('M7X-spec'!V64=\"○\",\"★\",\"\")","v":""},null,"Blank"]
[null,null,null,null,null,null,null," A : Parallel Piping ISO228",null,null,null,null,null,null,null,null,null,null,null,null,null,null,null,null,null,null,null,{"$f":"IF('M7X-spec'!V65=\"○\",\"★\",\"\")","v":"★"},null,null,null,{"$f":"IF('M7X-spec'!AC54=\"×\",\"Please check the combination availability of the code at [8] [9].\",\"\")","v":""}]
[null,null,null,null,null,null,null," B : ANSI ISO 11926",null,null,null,null,null,null,null,null,null,null,null,null,null,null,null,null,null,null,null,{"$f":"IF('M7X-spec'!V66=\"○\",\"★\",\"\")","v":"★"}]
[null,"Speed Sensor",null,null,null,10,null," Blank : w/o Speed Sensor",null,null,null,null,null,null,null,null,null,null,null,null,null,null,null,null,null,null,null,{"$f":"IF('M7X-spec'!V69=\"○\",\"★\",\"\")","v":""},null,"Blank"]
[null,null,null,null,null,null,null," 1 : w/ Speed Sensor (A Port Side)",null,null,null,null,null,null,null,null,null,null,null,null,null,null,null,null,null,null,null,{"$f":"IF('M7X-spec'!V70=\"○\",\"★\",\"\")","v":""}]
[null,null,null,null,null,null,null," B : w/ Speed Sensor (B Port Side)",null,null,null,null,null,null,null,null,null,null,null,null,null,null,null,null,null,null,null,{"$f":"IF('M7X-spec'!V71=\"○\",\"★\",\"\")","v":""}]
[null,"Design Code",null,null,null,11,null," ** : 01　～",null,null,null,null,null,null,null,null,null,null,null,null,null,null,null,null,null,null,null,null,null,"**"]

{"sheet":"Com","index":6,"n_rows":216,"n_cols":26,"rows_kept":216,"cut":false,"hidden":true,"merged":[]}
[null,"A",1,1,"A11","○",null,"A",1,1,"A11","○",null,"T1","X","T1X","○",null,"T1X",1,null,"C",1,2,"C12","○"]
[null,"A",1,2,"A12","○",null,"A",1,2,"A12","○",null,"T2","X","T2X","○",null,"T2X",1,null,"C",1,3,"C13","○"]
["SAE","A",1,3,"A13","○",null,"A",1,3,"A13","○",null,"Y1","X","Y1X","○",null,"Y1X",2,null,"C",1,7,"C17","×"]
["ISO","A",1,4,"A14","×",null,"A",1,4,"A14","×",null,"E1","X","E1X","○",null,"E1X",3,null,"C",1,8,"C18","×"]
[null,"A",1,5,"A15","×",null,"A",1,5,"A15","×",null,"E2","X","E2X","○",null,"E3X",3,null,"C",4,2,"C42","×"]
[null,"A",1,6,"A16","×",null,"A",1,6,"A16","×",null,"E3","X","E3X","○",null,"E2X",4,null,"C",4,3,"C43","×"]
[null,"A",1,7,"A17","×",null,"A",1,7,"A17","×",null,"E4","X","E4X","○",null,"E4X",4,null,"C",4,7,"C47","○"]
[null,"A",1,8,"A18","×",null,"A",1,8,"A18","×",null,"P1","X","P1X","○",null,"E1A1",5,null,"C",4,8,"C48","○"]
[null,"A",1,9,"A19","○",null,"A",1,9,"A19","○",null,"P2","X","P2X","○",null,"E3A1",5,null,"D",1,2,"D12","○"]
[null,"A",2,1,"A21","○",null,"A",2,1,"A21","○",null,"P3","X","P3X","○",null,"E2A1",6,null,"D",1,3,"D13","○"]
[null,"A",2,2,"A22","○",null,"A",2,2,"A22","○",null,"P4","X","P4X","○",null,"E4A1",6,null,"D",1,7,"D17","×"]
[null,"A",2,3,"A23","○",null,"A",2,3,"A23","○",null,"H1","X","H1X","○",null,"P1X",7,null,"D",1,8,"D18","×"]
[null,"A",2,4,"A24","×",null,"A",2,4,"A24","×",null,"H2","X","H2X","○",null,"P2X",8,null,"D",4,2,"D42","×"]
[null,"A",2,5,"A25","×",null,"A",2,5,"A25","×",null,"H3","X","H3X","○",null,"P3X",9,null,"D",4,3,"D43","×"]
[null,"A",2,6,"A26","×",null,"A",2,6,"A26","×",null,"T1","A1","T1A1","×",null,"P4X",10,null,"D",4,7,"D47","○"]
[null,"A",2,7,"A27","×",null,"A",2,7,"A27","×",null,"T2","A1","T2A1","×",null,"P1A1",11,null,"D",4,8,"D48","○"]
[null,"A",2,8,"A28","×",null,"A",2,8,"A28","×",null,"Y1","A1","Y1A1","○",null,"P2A1",12,null,"E",1,2,"E12","○"]
[null,"A",2,9,"A29","○",null,"A",2,9,"A29","○",null,"E1","A1","E1A1","○",null,"P3A1",13,null,"E",1,3,"E13","○"]
[null,"A",3,1,"A31","×",null,"A",3,1,"A31","×",null,"E2","A1","E2A1","○",null,"P4A1",14,null,"E",1,7,"E17","×"]
[null,"A",3,2,"A32","×",null,"A",3,2,"A32","×",null,"E3","A1","E3A1","○",null,"H1X",15,null,"E",1,8,"E18","×"]
[null,"A",3,3,"A33","×",null,"A",3,3,"A33","×",null,"E4","A1","E4A1","○",null,"H1B1",16,null,"E",4,2,"E42","×"]
[null,"A",3,4,"A34","×",null,"A",3,4,"A34","×",null,"P1","A1","P1A1","○",null,"H1B2",16,null,"E",4,3,"E43","×"]
[null,"A",3,5,"A35","×",null,"A",3,5,"A35","×",null,"P2","A1","P2A1","○",null,"H2X",17,null,"E",4,7,"E47","○"]
[null,"A",3,6,"A36","×",null,"A",3,6,"A36","×",null,"P3","A1","P3A1","○",null,"H2B1",18,null,"E",4,8,"E48","○"]
[null,"A",3,7,"A37","×",null,"A",3,7,"A37","×",null,"P4","A1","P4A1","○",null,"H2B2",18]
[null,"A",3,8,"A38","×",null,"A",3,8,"A38","×",null,"H1","A1","H1A1","×",null,"H3X",19]
[null,"A",3,9,"A39","×",null,"A",3,9,"A39","×",null,"H2","A1","H2A1","×",null,"H3B1",20]
[null,"A",4,1,"A41","×",null,"A",4,1,"A41","×",null,"H3","A1","H3A1","×",null,"H3B2",20]
[null,"A",4,2,"A42","×",null,"A",4,2,"A42","×",null,"T1","B1","T1B1","×"]
[null,"A",4,3,"A43","×",null,"A",4,3,"A43","×",null,"T2","B1","T2B1","×"]
[null,"A",4,4,"A44","×",null,"A",4,4,"A44","×",null,"Y1","B1","Y1B1","×"]
[null,"A",4,5,"A45","×",null,"A",4,5,"A45","×",null,"E1","B1","E1B1","×"]
[null,"A",4,6,"A46","×",null,"A",4,6,"A46","×",null,"E2","B1","E2B1","×"]
[null,"A",4,7,"A47","×",null,"A",4,7,"A47","×",null,"E3","B1","E3B1","×"]
[null,"A",4,8,"A48","×",null,"A",4,8,"A48","×",null,"E4","B1","E4B1","×"]
[null,"A",4,9,"A49","×",null,"A",4,9,"A49","×",null,"P1","B1","P1B1","×"]
[null,"B",1,1,"B11","○",null,"B",1,1,"B11","○",null,"P2","B1","P2B1","×"]
[null,"B",1,2,"B12","○",null,"B",1,2,"B12","○",null,"P3","B1","P3B1","×"]
[null,"B",1,3,"B13","○",null,"B",1,3,"B13","○",null,"P4","B1","P4B1","×"]
[null,"B",1,4,"B14","×",null,"B",1,4,"B14","×",null,"H1","B1","H1B1","○"]
[null,"B",1,5,"B15","×",null,"B",1,5,"B15","×",null,"H2","B1","H2B1","○"]
[null,"B",1,6,"B16","×",null,"B",1,6,"B16","×",null,"H3","B1","H3B1","○"]
[null,"B",1,7,"B17","×",null,"B",1,7,"B17","×",null,"T1","B2","T1B2","×"]
[null,"B",1,8,"B18","×",null,"B",1,8,"B18","×",null,"T2","B2","T2B2","×"]
[null,"B",1,9,"B19","○",null,"B",1,9,"B19","○",null,"Y1","B2","Y1B2","×"]
[null,"B",2,1,"B21","○",null,"B",2,1,"B21","○",null,"E1","B2","E1B2","×"]
[null,"B",2,2,"B22","○",null,"B",2,2,"B22","○",null,"E2","B2","E2B2","×"]
[null,"B",2,3,"B23","○",null,"B",2,3,"B23","○",null,"E3","B2","E3B2","×"]
[null,"B",2,4,"B24","×",null,"B",2,4,"B24","×",null,"E4","B2","E4B2","×"]
[null,"B",2,5,"B25","×",null,"B",2,5,"B25","×",null,"P1","B2","P1B2","×"]
[null,"B",2,6,"B26","×",null,"B",2,6,"B26","×",null,"P2","B2","P2B2","×"]
[null,"B",2,7,"B27","×",null,"B",2,7,"B27","×",null,"P3","B2","P3B2","×"]
[null,"B",2,8,"B28","×",null,"B",2,8,"B28","×",null,"P4","B2","P4B2","×"]
[null,"B",2,9,"B29","○",null,"B",2,9,"B29","○",null,"H1","B2","H1B2","○"]
[null,"B",3,1,"B31","×",null,"B",3,1,"B31","×",null,"H2","B2","H2B2","○"]
[null,"B",3,2,"B32","×",null,"B",3,2,"B32","×",null,"H3","B2","H3B2","○"]
[null,"B",3,3,"B33","×",null,"B",3,3,"B33","×"]
[null,"B",3,4,"B34","×",null,"B",3,4,"B34","×"]
[null,"B",3,5,"B35","×",null,"B",3,5,"B35","×"]
[null,"B",3,6,"B36","×",null,"B",3,6,"B36","×"]
[null,"B",3,7,"B37","×",null,"B",3,7,"B37","×"]
[null,"B",3,8,"B38","×",null,"B",3,8,"B38","×"]
[null,"B",3,9,"B39","×",null,"B",3,9,"B39","×"]
[null,"B",4,1,"B41","×",null,"B",4,1,"B41","×"]
[null,"B",4,2,"B42","×",null,"B",4,2,"B42","×"]
[null,"B",4,3,"B43","×",null,"B",4,3,"B43","×"]
[null,"B",4,4,"B44","×",null,"B",4,4,"B44","×"]
[null,"B",4,5,"B45","×",null,"B",4,5,"B45","×"]
[null,"B",4,6,"B46","×",null,"B",4,6,"B46","×"]
[null,"B",4,7,"B47","×",null,"B",4,7,"B47","×"]
[null,"B",4,8,"B48","×",null,"B",4,8,"B48","×"]
[null,"B",4,9,"B49","×",null,"B",4,9,"B49","×"]
[null,"C",1,1,"C11","×",null,"C",1,1,"C11","×"]
[null,"C",1,2,"C12","×",null,"C",1,2,"C12","×"]
[null,"C",1,3,"C13","×",null,"C",1,3,"C13","×"]
[null,"C",1,4,"C14","×",null,"C",1,4,"C14","×"]
[null,"C",1,5,"C15","×",null,"C",1,5,"C15","×"]
[null,"C",1,6,"C16","×",null,"C",1,6,"C16","×"]
[null,"C",1,7,"C17","×",null,"C",1,7,"C17","×"]
[null,"C",1,8,"C18","×",null,"C",1,8,"C18","×"]
[null,"C",1,9,"C19","×",null,"C",1,9,"C19","×"]
[null,"C",2,1,"C21","×",null,"C",2,1,"C21","×"]
[null,"C",2,2,"C22","×",null,"C",2,2,"C22","×"]
[null,"C",2,3,"C23","×",null,"C",2,3,"C23","×"]
[null,"C",2,4,"C24","×",null,"C",2,4,"C24","×"]
[null,"C",2,5,"C25","×",null,"C",2,5,"C25","×"]
[null,"C",2,6,"C26","×",null,"C",2,6,"C26","×"]
[null,"C",2,7,"C27","×",null,"C",2,7,"C27","×"]
[null,"C",2,8,"C28","×",null,"C",2,8,"C28","×"]
[null,"C",2,9,"C29","×",null,"C",2,9,"C29","×"]
[null,"C",3,1,"C31","×",null,"C",3,1,"C31","×"]
[null,"C",3,2,"C32","×",null,"C",3,2,"C32","×"]
[null,"C",3,3,"C33","×",null,"C",3,3,"C33","×"]
[null,"C",3,4,"C34","×",null,"C",3,4,"C34","×"]
[null,"C",3,5,"C35","○",null,"C",3,5,"C35","○"]
[null,"C",3,6,"C36","○",null,"C",3,6,"C36","○"]
[null,"C",3,7,"C37","○",null,"C",3,7,"C37","○"]
[null,"C",3,8,"C38","○",null,"C",3,8,"C38","○"]
[null,"C",3,9,"C39","×",null,"C",3,9,"C39","×"]
[null,"C",4,1,"C41","×",null,"C",4,1,"C41","×"]
[null,"C",4,2,"C42","×",null,"C",4,2,"C42","×"]
[null,"C",4,3,"C43","×",null,"C",4,3,"C43","×"]
[null,"C",4,4,"C44","×",null,"C",4,4,"C44","×"]
[null,"C",4,5,"C45","○",null,"C",4,5,"C45","○"]
[null,"C",4,6,"C46","○",null,"C",4,6,"C46","○"]
[null,"C",4,7,"C47","○",null,"C",4,7,"C47","○"]
[null,"C",4,8,"C48","○",null,"C",4,8,"C48","○"]
[null,"C",4,9,"C49","×",null,"C",4,9,"C49","×"]
[null,"D",1,1,"D11","×",null,"D",1,1,"D11","×"]
[null,"D",1,2,"D12","×",null,"D",1,2,"D12","×"]
[null,"D",1,3,"D13","×",null,"D",1,3,"D13","×"]
[null,"D",1,4,"D14","×",null,"D",1,4,"D14","×"]
[null,"D",1,5,"D15","×",null,"D",1,5,"D15","×"]
[null,"D",1,6,"D16","×",null,"D",1,6,"D16","×"]
[null,"D",1,7,"D17","×",null,"D",1,7,"D17","×"]
[null,"D",1,8,"D18","×",null,"D",1,8,"D18","×"]
[null,"D",1,9,"D19","×",null,"D",1,9,"D19","×"]
[null,"D",2,1,"D21","×",null,"D",2,1,"D21","×"]
[null,"D",2,2,"D22","×",null,"D",2,2,"D22","×"]
[null,"D",2,3,"D23","×",null,"D",2,3,"D23","×"]
[null,"D",2,4,"D24","×",null,"D",2,4,"D24","×"]
[null,"D",2,5,"D25","×",null,"D",2,5,"D25","×"]
[null,"D",2,6,"D26","×",null,"D",2,6,"D26","×"]
[null,"D",2,7,"D27","×",null,"D",2,7,"D27","×"]
[null,"D",2,8,"D28","×",null,"D",2,8,"D28","×"]
[null,"D",2,9,"D29","×",null,"D",2,9,"D29","×"]
[null,"D",3,1,"D31","×",null,"D",3,1,"D31","×"]
[null,"D",3,2,"D32","×",null,"D",3,2,"D32","×"]
[null,"D",3,3,"D33","×",null,"D",3,3,"D33","×"]
[null,"D",3,4,"D34","×",null,"D",3,4,"D34","×"]
[null,"D",3,5,"D35","○",null,"D",3,5,"D35","○"]
[null,"D",3,6,"D36","○",null,"D",3,6,"D36","○"]
[null,"D",3,7,"D37","○",null,"D",3,7,"D37","○"]
[null,"D",3,8,"D38","○",null,"D",3,8,"D38","○"]
[null,"D",3,9,"D39","×",null,"D",3,9,"D39","×"]
[null,"D",4,1,"D41","×",null,"D",4,1,"D41","×"]
[null,"D",4,2,"D42","×",null,"D",4,2,"D42","×"]
[null,"D",4,3,"D43","×",null,"D",4,3,"D43","×"]
[null,"D",4,4,"D44","×",null,"D",4,4,"D44","×"]
[null,"D",4,5,"D45","○",null,"D",4,5,"D45","○"]
[null,"D",4,6,"D46","○",null,"D",4,6,"D46","○"]
[null,"D",4,7,"D47","○",null,"D",4,7,"D47","○"]
[null,"D",4,8,"D48","○",null,"D",4,8,"D48","○"]
[null,"D",4,9,"D49","×",null,"D",4,9,"D49","×"]
[null,"E",1,1,"E11","×",null,"G",1,1,"G11","○"]
[null,"E",1,2,"E12","×",null,"G",1,2,"G12","○"]
[null,"E",1,3,"E13","×",null,"G",1,3,"G13","○"]
[null,"E",1,4,"E14","○",null,"G",1,4,"G14","×"]
[null,"E",1,5,"E15","×",null,"G",1,5,"G15","×"]
[null,"E",1,6,"E16","×",null,"G",1,6,"G16","×"]
[null,"E",1,7,"E17","×",null,"G",1,7,"G17","×"]
[null,"E",1,8,"E18","×",null,"G",1,8,"G18","×"]
[null,"E",1,9,"E19","×",null,"G",1,9,"G19","○"]
[null,"E",2,1,"E21","×",null,"G",2,1,"G21","○"]
[null,"E",2,2,"E22","×",null,"G",2,2,"G22","○"]
[null,"E",2,3,"E23","×",null,"G",2,3,"G23","○"]
[null,"E",2,4,"E24","×",null,"G",2,4,"G24","×"]
[null,"E",2,5,"E25","×",null,"G",2,5,"G25","×"]
[null,"E",2,6,"E26","×",null,"G",2,6,"G26","×"]
[null,"E",2,7,"E27","×",null,"G",2,7,"G27","×"]
[null,"E",2,8,"E28","×",null,"G",2,8,"G28","×"]
[null,"E",2,9,"E29","×",null,"G",2,9,"G29","○"]
[null,"E",3,1,"E31","×",null,"G",3,1,"G31","×"]
[null,"E",3,2,"E32","×",null,"G",3,2,"G32","×"]
[null,"E",3,3,"E33","×",null,"G",3,3,"G33","×"]
[null,"E",3,4,"E34","×",null,"G",3,4,"G34","×"]
[null,"E",3,5,"E35","×",null,"G",3,5,"G35","×"]
[null,"E",3,6,"E36","×",null,"G",3,6,"G36","×"]
[null,"E",3,7,"E37","×",null,"G",3,7,"G37","×"]
[null,"E",3,8,"E38","×",null,"G",3,8,"G38","×"]
[null,"E",3,9,"E39","×",null,"G",3,9,"G39","×"]
[null,"E",4,1,"E41","×",null,"G",4,1,"G41","×"]
[null,"E",4,2,"E42","×",null,"G",4,2,"G42","×"]
[null,"E",4,3,"E43","×",null,"G",4,3,"G43","×"]
[null,"E",4,4,"E44","○",null,"G",4,4,"G44","×"]
[null,"E",4,5,"E45","×",null,"G",4,5,"G45","×"]
[null,"E",4,6,"E46","×",null,"G",4,6,"G46","×"]
[null,"E",4,7,"E47","×",null,"G",4,7,"G47","×"]
[null,"E",4,8,"E48","×",null,"G",4,8,"G48","×"]
[null,"E",4,9,"E49","×",null,"G",4,9,"G49","×"]
[null,"F",1,1,"F11","×",null,"H",1,1,"H11","×"]
[null,"F",1,2,"F12","×",null,"H",1,2,"H12","×"]
[null,"F",1,3,"F13","×",null,"H",1,3,"H13","×"]
[null,"F",1,4,"F14","○",null,"H",1,4,"H14","×"]
[null,"F",1,5,"F15","×",null,"H",1,5,"H15","×"]
[null,"F",1,6,"F16","×",null,"H",1,6,"H16","×"]
[null,"F",1,7,"F17","×",null,"H",1,7,"H17","×"]
[null,"F",1,8,"F18","×",null,"H",1,8,"H18","×"]
[null,"F",1,9,"F19","×",null,"H",1,9,"H19","×"]
[null,"F",2,1,"F21","×",null,"H",2,1,"H21","×"]
[null,"F",2,2,"F22","×",null,"H",2,2,"H22","×"]
[null,"F",2,3,"F23","×",null,"H",2,3,"H23","×"]
[null,"F",2,4,"F24","×",null,"H",2,4,"H24","×"]
[null,"F",2,5,"F25","×",null,"H",2,5,"H25","×"]
[null,"F",2,6,"F26","×",null,"H",2,6,"H26","×"]
[null,"F",2,7,"F27","×",null,"H",2,7,"H27","×"]
[null,"F",2,8,"F28","×",null,"H",2,8,"H28","×"]
[null,"F",2,9,"F29","×",null,"H",2,9,"H29","×"]
[null,"F",3,1,"F31","×",null,"H",3,1,"H31","×"]
[null,"F",3,2,"F32","×",null,"H",3,2,"H32","×"]
[null,"F",3,3,"F33","×",null,"H",3,3,"H33","×"]
[null,"F",3,4,"F34","×",null,"H",3,4,"H34","×"]
[null,"F",3,5,"F35","×",null,"H",3,5,"H35","○"]
[null,"F",3,6,"F36","×",null,"H",3,6,"H36","○"]
[null,"F",3,7,"F37","×",null,"H",3,7,"H37","○"]
[null,"F",3,8,"F38","×",null,"H",3,8,"H38","○"]
[null,"F",3,9,"F39","×",null,"H",3,9,"H39","×"]
[null,"F",4,1,"F41","×",null,"H",4,1,"H41","×"]
[null,"F",4,2,"F42","×",null,"H",4,2,"H42","×"]
[null,"F",4,3,"F43","×",null,"H",4,3,"H43","×"]
[null,"F",4,4,"F44","○",null,"H",4,4,"H44","×"]
[null,"F",4,5,"F45","×",null,"H",4,5,"H45","○"]
[null,"F",4,6,"F46","×",null,"H",4,6,"H46","○"]
[null,"F",4,7,"F47","×",null,"H",4,7,"H47","○"]
[null,"F",4,8,"F48","×",null,"H",4,8,"H48","○"]
[null,"F",4,9,"F49","×",null,"H",4,9,"H49","×"]

{"sheet":"Notes","index":7,"n_rows":13,"n_cols":1,"rows_kept":13,"cut":false,"hidden":true,"merged":[]}
["Notes:"]
[]
["1)  Select an option from the drop down list from top-to-bottom, beginning with the motor size."]
[]
["2)   A requirement displayed with gray shading means that it is not available."]
[]
["3)   A requirement which is under development is marked with  a star \"★\" on the right."]
[]
["4)　The background color of the cell with the drop down list changes to red when an unavailable option(requirement) is selected."]
[]
["5)　The background color of the cell with the drop down list changes to yellow when an option(requirement) under development is selected."]
[]
["6)  If the necessary option is left unselected, the background color of the cell in the model code row changes to red."]